Workbook

Sheet OVERALL RATING (avg)
B3: =CONCATENATE(D52," ",F52) -> 0 0
C7: Clean Air Index | E7: Energy Efficiency Index | G7: Greenhouse Gas Index
C8: 32.6 | E8: 40.5
B9: Standard Testing | C9: ='Clean Air'!B6 -> WLTC+ warm engine | D9: ='Clean Air'!F14 ->  | E9: =Efficiency!C12 -> WLTC+ warm engine | F9: =SUM(Efficiency!F12:F14) ->  | G9: =Greenhouse!B24 -> WLTC+ warm engine | H9: =Greenhouse!F32 -> 
C10: ='Clean Air'!B15 -> WLTC+ cold engine (23°C) | D10: ='Clean Air'!F23 ->  | E10: =Efficiency!C10 -> WLTC+ cold engine (23°C) | F10: =Efficiency!F10 ->  | G10: =Greenhouse!B6 -> WLTC+ cold engine (23°C) | H10: =Greenhouse!F14 -> 
C11: ='Clean Air'!B24 -> BAB130 Motorway | D11: ='Clean Air'!F32 ->  | E11: =Efficiency!C15 -> BAB130 Motorway | F11: =Efficiency!F15 ->  | G11: =Greenhouse!B54 -> BAB130 Motorway | H11: =Greenhouse!F62 -> 
C12: ='Clean Air'!B34 -> PEMS+ cold engine 1 | D12: ='Clean Air'!F42 ->  | E12: =Efficiency!C13 -> PEMS+ cold engine 1 | F12: =IF(Efficiency!F13=0,"-",Efficiency!F13) -> - | G12: =Greenhouse!B34 -> PEMS+ cold engine 1 | H12: =IF(Greenhouse!D34=0,"-",Greenhouse!F42) -> -
C13: ='Clean Air'!$B$52 -> Short trip / cold start 1 | D13: ='Clean Air'!F59 ->  | E13: =Efficiency!C18 -> Short trip / cold start 1 | F13: =IF(Efficiency!F14=0,"-",Efficiency!F14) -> - | G13: =Greenhouse!B81 -> Short trip / cold start 1 | H13: =IF(Greenhouse!D81=0,"-",Greenhouse!F89) -> -
B14: Eligible for additional robustness testing? | E14: =IF(AND(AVERAGE('Clean Air'!E102,Efficiency!F29,Greenhouse!F93)>='LIMITS Clean Air'!P20,MIN(Greenhouse!F93,Efficiency!F29,'Clean Air'!E102)>='LIMITS Clean Air'!P24),"YES","NO") -> 
B15: Additional Robustness Testing | C15: ='Clean Air'!B62 -> WLTC+ CAT (-7°C) | D15: =IF(E14="YES",'Clean Air'!F70,0) ->  | E15: =Efficiency!C11 -> WLTC+ CAT (-7°C) | F15: =IF(E14="YES",Efficiency!F11,0) ->  | G15: =Greenhouse!B15 -> WLTC+ CAT (-7°C) | H15: =IF(E14="YES",Greenhouse!F23,0) -> 
C16: ='Clean Air'!$B$71 -> PEMS+ Eco / light | D16: =IF(E14="YES",'Clean Air'!F79,0) ->  | E16: =Efficiency!C16 -> PEMS+ Eco / light | F16: =IF(Efficiency!F16=0,"-",Efficiency!F16) -> - | G16: =Greenhouse!B63 -> PEMS+ Eco / light | H16: =IF(Greenhouse!D63=0,"-",Greenhouse!F71) -> -
C17: ='Clean Air'!$B$80 -> PEMS+ Heavy load | D17: =IF(E14="YES",'Clean Air'!F88,0) ->  | E17: =Efficiency!C17 -> PEMS+ Heavy load | F17: =IF(Efficiency!F17=0,"-",Efficiency!F17) -> - | G17: =Greenhouse!B72 -> PEMS+ Heavy load | H17: =IF(Greenhouse!D72=0,"-",Greenhouse!F80) -> -
C18: ='Clean Air'!$B$89 -> PEMS Congestion | D18: =IF(E14="YES",'Clean Air'!F98,0) -> 
B19: not used | C19: ='Clean Air'!B43 -> PEMS+ cold engine 2 | D19: ='Clean Air'!F51 -> 0 | E19: =Efficiency!C14 -> PEMS+ cold engine 2 | F19: =IF(Efficiency!F14=0,"-",Efficiency!F14) -> - | G19: =Greenhouse!$B$43 -> PEMS+ cold engine 2 | H19: =IF(Greenhouse!D43=0,"-",Greenhouse!F51) -> -
E20: Driving Range | F20: -
E21: Driving Resistance | F21: =IF(Efficiency!E60=0,"-",Efficiency!F63) -> -
B22: Total Score | C22: ='Clean Air'!E101+'Clean Air'!E105 ->  | E22: =Efficiency!E32 ->  | G22: =Greenhouse!E95 -> 
B23: Max Points Available | C23: =IF(E14="YES",'Clean Air'!D105+'Clean Air'!D101,'Clean Air'!D101) ->  | E23: =IF(E14="YES",Efficiency!D32,Efficiency!D29) ->  | G23: =IF(E14="YES",Greenhouse!D95,Greenhouse!D93) ->  | J23: CA | K23: =IF(AND(E14="YES",ROUNDDOWN((C24*C25+E25*E24+G25*G24)/100,1)<5),'Clean Air'!E102,$C$24) -> 
B24: Index | C24: =ROUNDDOWN(10*C22/C23,1) ->  | E24: =ROUNDDOWN(10*E22/E23,1) ->  | G24: =ROUNDDOWN(10*G22/G23,1) ->  | J24: EE | K24: =IF(AND(E14="YES",ROUNDDOWN((C24*C25+E25*E24+G25*G24)/100,1)<5),Efficiency!F29,$E$24) -> 
B25: Weighting Factors | C25: =100/3 -> 33.33333333 | E25: =100/3 -> 33.33333333 | G25: =100/3 -> 33.33333333 | J25: GHG | K25: =IF(AND(E14="YES",ROUNDDOWN((C24*C25+E25*E24+G25*G24)/100,1)<5),Greenhouse!F93,$G$24) -> 
B26: Weighted Overall Index | C26: =IF(AND(E14="YES",ROUNDDOWN((C24*C25+E25*E24+G25*G24)/100,1)<5),5,ROUNDDOWN((C24*C25+E25*E24+G25*G24)/100,1)) ->  | I26: =ROUNDDOWN((C24*C25+E25*E24+G25*G24)/100,1) ->  | J26: =ROUND(MAX(IF(C26>=F29:F38,E29:E38)),1) -> 
E28: Stars | F28: Threshold
E29: 5 | F29: 9
E30: 4.5 | F30: 8
E31: 4 | F31: 7
E32: 3.5 | F32: 6
E33: 3 | F33: 5
E34: 2.5 | F34: 4
E35: 2 | F35: 3
E36: 1.5 | F36: 2
E37: 1 | F37: 1
E38: 0 | F38: 0
B42: RATING REQUIREMENTS 2021
C43: 9 | E43: 7.5 | G43: 4 | L43: =IF(AND($C$24:$H$24>=C43:H43),1,0) -> 
C44: 7 | E44: 6 | G44: =G43-1 -> 3 | L44: =IF(AND($C$24:$H$24>=C44:H44),1,0) -> 
C45: 5 | E45: 4.5 | G45: =G44-1 -> 2 | L45: =IF(AND($C$24:$H$24>=C45:H45),1,0) -> 
C46: 3 | E46: 3 | G46: 1 | L46: =IF(AND($C$24:$H$24>=C46:H46),1,0) -> 
C47: 1 | E47: 1.5 | G47: 0 | L47: =IF(AND($C$24:$H$24>=C47:H47),1,0) -> 
B49: 1): test not operational yet | L49: =SUM(L43:L47) -> 
C51: TEST DETAILS
C52: Vehicle | D52: =SPECS!B1 -> 0 | F52: =SPECS!$B$2 -> 0
C53: Specs (cc/kW) | D53: =IF(SPECS!B29=0,"-",SPECS!B29) -> - | E53: cc | F53: =IF(SPECS!B30=0,"-",SPECS!B30) -> - | G53: kW
C54: Applies to VIN: | D54: =IF(SPECS!B26=0,"-",SPECS!B26) -> -
C55: Powerunit(s) | D55: =IF(Petrol,"Petrol",IF(Diesel,"Diesel",IF(CNG_Dual,"CNG-Bivalent",IF(CNG_Mono,"CNG",IF(Hydrogen,"FCEV",IF(Electric,"Battery Electric")))))) -> Petrol | E55: =IF(Electric,"electric","-") -> - | F55: =IF(CNG_Dual,"CNG Bi-Fuel","-") -> - | G55: =IF(CNG_Mono,"CNG monovalent","-") -> -
C56: Actual mass (kg) | D56: =SPECS!B33 -> 0
C57: Average Energy Use (Warm Test, Cold Test, Highway) | F57: Average Driving Range (Warm Test, Cold Test, Highway)
C58: liquid fuel | D58: =IF(Efficiency!M$32>0,Efficiency!M$32,"n.a.") -> n.a. | E58: l/100km | F58: =IF(Efficiency!M$52>0,Efficiency!M$52,"n.a.") -> n.a. | H58: km
C59: gaseous fuel | D59: =IF(Efficiency!S$32>0,Efficiency!S$32,"n.a.") -> n.a. | E59: kg/100km | F59: =IF(Efficiency!S$52>0,Efficiency!S$52,"n.a.") -> n.a. | H59: km
C60: electric energy | D60: =IF(Efficiency!P$32>0,Efficiency!P$32,"n.a.") -> n.a. | E60: kWh/100km | F60: =IF(Efficiency!P$52>0,Efficiency!P$52,"n.a.") -> n.a. | H60: km
C61: Warm Test (Lab) Energy Use | F61: Warm Test (Lab) Driving range
C62: liquid fuel | D62: =IF(Efficiency!M$33>0,Efficiency!M$33,"n.a.") -> n.a. | E62: l/100km | F62: =IF(Efficiency!M$53>0,Efficiency!M$53,"n.a.") -> n.a. | H62: km
C63: gaseous fuel | D63: =IF(Efficiency!S$33>0,Efficiency!S$33,"n.a.") -> n.a. | E63: kg/100km | F63: =IF(Efficiency!S$53>0,Efficiency!S$53,"n.a.") -> n.a. | H63: km
C64: electric energy | D64: =IF(Efficiency!P$33>0,Efficiency!P$33,"n.a.") -> n.a. | E64: kWh/100km | F64: =IF(Efficiency!P$53>0,Efficiency!P$53,"n.a.") -> n.a. | H64: km
C65: Highway Energy Use | F65: Highway Energy Use Driving Range
C66: liquid fuel | D66: =IF(Efficiency!M$34>0,Efficiency!M$34,"n.a.") -> n.a. | E66: l/100km | F66: =IF(Efficiency!M$54>0,Efficiency!M$54,"n.a.") -> n.a. | H66: km
C67: gaseous fuel | D67: =IF(Efficiency!S$34>0,Efficiency!S$34,"n.a.") -> n.a. | E67: kg/100km | F67: =IF(Efficiency!S$54>0,Efficiency!S$54,"n.a.") -> n.a. | H67: km
C68: electric energy | D68: =IF(Efficiency!P$34>0,Efficiency!P$34,"n.a.") -> n.a. | E68: kWh/100km | F68: =IF(Efficiency!P$54>0,Efficiency!P$54,"n.a.") -> n.a. | H68: km
C69: Cold Ambient Test (-7°C) Energy Use | F69: Cold Ambient Test (-7°C) Driving Range
C70: liquid fuel | D70: =IF(AND($E$14="YES",Efficiency!M$35>0),Efficiency!M$35,"n.a.") ->  | E70: l/100km | F70: =IF(AND($E$14="YES",Efficiency!M$55>0),Efficiency!M$55,"n.a.") ->  | H70: km
C71: gaseous fuel | D71: =IF(AND($E$14="YES",Efficiency!S$35>0),Efficiency!S$35,"n.a.") ->  | E71: kg/100km | F71: =IF(AND($E$14="YES",Efficiency!S$55>0),Efficiency!S$55,"n.a.") ->  | H71: km
C72: electric energy | D72: =IF(AND($E$14="YES",Efficiency!P$35>0),Efficiency!P$35,"n.a.") ->  | E72: kWh/100km | F72: =IF(AND($E$14="YES",Efficiency!P$55>0),Efficiency!P$55,"n.a.") ->  | H72: km

Sheet SPECS
A1: Brand | C1: CoC p.0.1. (e.g. Mercedes-Benz) | L1: Petrol (inc hybrids) | M1: =IF(ICE_Type=1,TRUE,FALSE) -> TRUE | N1: 1 | O1: Rating Sheet Version | P1: Euro 6b | Q1: 1
A2: Model | C2: CoC p.0.2.1. (e.g. V-Class) | L2: Diesel (inc. hybrids) | M2: =IF(ICE_Type=2,TRUE,FALSE) -> FALSE | N2: TRUE | O2: 2023.2.0.8.7 | P2: Euro 6c
A3: Variant Name | C3: Model data (e.g. V250d, 9G-Tronic, Avantgarde) | L3: ICE - CNG - Mono | M3: =IF(ICE_Type=3,TRUE,FALSE) -> FALSE | O3: Protocols | P3: Euro 6d-Temp
A4: Green NCAP Test Reference Number | C4: (e.g. 20-FOR-0023) | H4: SELECT | L4: ICE - CNG - Dual | M4: =IF(ICE_Type=4,TRUE,FALSE) -> FALSE | O4: 2022 | P4: Euro 6d
A5: Drivetrain | C5: CoC p.3. (e.g. RWD) | L5: Hydrogen | M5: =IF(ICE_Type=6,TRUE,FALSE) -> FALSE | P5: Euro AX
A6: Fuel Type | B6: =IF(Petrol,"Petrol",IF(Diesel,"Diesel",IF(E_85,"Ethanol E85",IF(CNG_Dual,"CNG",IF(CNG_Mono,"CNG",IF(Hydrogen,"Hydrogen",IF(Electric,"Electric"))))))) -> Petrol | C6: CoC p.26. (e.g. diesel, bi-fuel) | J6: Respect Green NCAP's definition of "Hybrid". | L6: Battery Electric | M6: =IF(ICE_Type=5,TRUE,FALSE) -> FALSE
A7: Primary fuel source | B7: =IF(Petrol,"Petrol",IF(Diesel,"Diesel",IF(E_85,"Ethanol E85",IF(CNG_Dual,"CNG",IF(CNG_Mono,"CNG",IF(Hydrogen,"Hydrogen",IF(Electric,"Electric"))))))) -> Petrol | L7: Ethanol E85 | M7: =IF(ICE_Type=7,TRUE,FALSE) -> FALSE | P7: Manual
A8: Secondary fuel source (if applicable) | P8: Automatic
A9: Fuel tank size liquid fuel [l] | C9: Tech data (e.g. 70 l) | L9: Hybrid | M9: FALSE | P9: CVT
A10: Fuel tank size gaseous fuel [kg] | C10: Tech data (e.g. 15 kg)
A11: Declared Battery Capacity (usable) [kWh] | C11: Tech data (e.g. 52 kWh) | P11: RWD
A12: Declared Battery Capacity (installed) [kWh] | C12: Tech data (e.g. 56 kWh) | P12: FWD
A13: Declared CO2 emissions (WLTP) [g/km] | C13: CoC p.49.4. (e.g. 132 g/km) | P13: AWD
A14: Declared Fuel Consumption (WLTP) [l(kg)/100km] | C14: CoC p.49.4. (e.g. 6.2 l/100km) | P14: 4x4
A15: Declared Fuel Consumption 2nd fuel source (WLTP) [l(kg)/100km] | C15: CoC p.49.4. (e.g. 6.2 l/100km)
A16: Declared Electric Energy Consumption (for BEV) [kWh/100km] | C16: CoC p.49.5.1 (e.g. 19.5 kWh/100km)
A17: Declared Electric Range (for BEV) [km] | C17: CoC p.49.5.1 (e.g. 400 km)
A18: Declared Electric Range City (for BEV) [km] | C18: CoC p.49.5.1 (e.g. 480 km) | P18: Waste heat
A19: Declared Electric Energy Consumption (for PHEV) [kWh/100km] | C19: CoC p.49.5.2 (e.g. 13.9 kWh/100km) | P19: PTC
A20: Declared Electric Range (EAER, for PHEV) [km] | C20: CoC p.49.5.2 (e.g. 50 km) | P20: Heat pump
A21: Declared Electric Range City (for PHEV) [km] | C21: CoC p.49.5.2 (e.g. 61 km) | P21: Waste heat & PTC
A22: Heating concept | C22: Tech data | P22: Waste heat & Heat pump
A23: Gearbox type | C23: CoC p.48. (e.g. automatic) | P23: Waste heat & PTC & Heat pump
A24: Chassis Version | B24: AE | C24: CoC p.38. (check list H24:H30) check https://eur-lex.europa.eu/legal-content/EN/TXT/?uri=CELEX:32011R0678) | P24: PTC & Heat pump
A25: Number of doors | C25: CoC p.41. (e.g. 5 doors) | H25: AA | I25: Saloon
A26: VIN tested vehicle | C26: CoC p.0.10. (e.g. WDF44781313651756) | H26: AB | I26: Hatchback
A27: Emissions class | C27: CoC p.47. (e.g. Euro 6d AP) | H27: AC | I27: Station wagon | U27: Euro 6d AJ
A28: Engine code | C28: CoC p.21. (e.g. BS654T) | H28: AD | I28: Coupe | U28: Euro 6d AK
A29: Engine capacity [cm3] | C29: CoC p.25. (e.g. 1950 cm3) | H29: AE | I29: Convertible | U29: Euro 6d AL
A30: Engine/System Power [kW] | C30: CoC p.27. (e.g. 140 kW, for HEV/PHEV see tech data) | H30: AF | I30: Multi-purpose vehicle | U30: Euro 6d AM
A31: Engine/System Torque [Nm] | C31: See tech data (e.g. 250 Nm) | H31: AG | I31: Truck station wagon | U31: Euro 6d AN
A32: Tyre size (front and rear if different) | C32: For the actual vehicle (e.g. 245/45 255/30 R19) | U32: Euro 6d AO
A33: Actual Vehicle Mass [kg] = CoC 13.2 - 75 kg | C33: Calculate: CoC p.13.2 - 75 kg (e.g. 1550 kg) | U33: Euro 6d AP
A34: Start of Production | C34: if available, DD/MM/YYYY, should be before "End of Production" | U34: Euro 6d AQ
A35: End of Production | C35: if available, DD/MM/YYYY, should be after "Start of Production" | U35: Euro 6 AX
U36: Euro 6 AY
A37: Measured Recharged Electric Energy (BEV and PHEV, from grid) [kWh] | B37: =RESULTS!AA4 -> 0 | C37: Don't enter here. Will be taken from Results AA4 | U37: Euro 6 AZ
A38: Measured Netto Battery Capacity (BEV and PHEV) [kWh] | B38: =RESULTS!AB4 -> 0 | C38: Don't enter here. Will be taken from Results AB4 | U38: Euro 6d-Temp AG
U39: Euro 6d-Temp AH
U40: Euro 6d-Temp AI
U41: Euro 6d-Temp BG
U42: Euro 6d-Temp BH
U43: Euro 6d-Temp BI
U44: Euro 6d-Temp CG
U45: Euro 6d-Temp CH
U46: Euro 6d-Temp CI
U47: Euro 6d-Temp DG

Sheet RESULTS
A2: DOMINANT FUEL | B2: MAIN RESULTS 1 | E2: CO2 tailpipe | F2: CO2 RCB corr. | G2: CO | H2: NOx | I2: NO | J2: NO2 | K2: PN | L2: PM | M2: N2O | N2: NH3 | O2: THC | P2: CH4 | Q2: Fuel Consumption | R2: Energy Consumption from Grid | S2: Fuel consumpt. | T2: Energy consumpt. | U2: Gas Consumption | V2: Board Comp. fuel consumpt. | W2: Board Comp. energy consumpt. | X2: Board Comp. gas consumpt. | Y2: Driving Range (ICE mode) | Z2: Driving Range (electr. mode) | AA2: Measured Recharged Electric Energy (BEV and PHEV, from grid) | AB2: Measured Netto Battery Capacity | AC2: Efiiciency grid to battery output | AD2: Electr. energy consumpt. from battery
E3: g/km | F3: g/km | G3: mg/km | H3: mg/km | I3: mg/km | J3: mg/km | K3: #/km | L3: mg/km | M3: mg/km | N3: mg/km | O3: mg/km | P3: mg/km | Q3: l/100km | R3: kWh/100km | S3: g/s | T3: Wh/s | U3: kg/100km | V3: l/100km | W3: kWh/100km | X3: kg/100km | Y3: km | Z3: km | AA3: kWh | AB3: kWh | AC3: % | AD3: kWh/100km
B4: Laboratory Tests | C4: WLTC+ appr. | D4: WLTC+ cold engine (23°C)
D5: WLTC+ cold engine 2 (not rated)
D6: WLTC+ cold engine average (not rated)
D7: WLTC+ CAT (-7°C)
C8: Robustness | D8: WLTC+ warm engine
D9: WLTC+ reg. warm engn. rep. (not rated)
D10: BAB130 Motorway
B11: Real-World tests | C11: Approval | D11: PEMS+ cold engine 1 | F11: n.a. | L11: n.a. | M11: n.a. | N11: n.a. | O11: n.a. | P11: n.a.
D12: PEMS+ cold engine 2 | F12: n.a. | L12: n.a. | M12: n.a. | N12: n.a. | O12: n.a. | P12: n.a.
C13: Short urban trip | D13: Short trip / cold start 1 | F13: n.a. | L13: n.a. | M13: n.a. | N13: n.a. | O13: n.a. | P13: n.a.
D14: Short trip / cold start 2 | F14: n.a. | L14: n.a. | M14: n.a. | N14: n.a. | O14: n.a. | P14: n.a.
C15: Robustness | D15: PEMS+ Eco / light | F15: n.a. | L15: n.a. | M15: n.a. | N15: n.a. | O15: n.a. | P15: n.a.
D16: PEMS+ Heavy load | F16: n.a. | L16: n.a. | M16: n.a. | N16: n.a. | O16: n.a. | P16: n.a.
E17: g/s ↓ | F17: g/s ↓ | G17: mg/s ↓ | H17: mg/s ↓ | I17: mg/s ↓ | J17: mg/s ↓ | K17: #/s ↓ | M17: mg/s ↓ | O17: mg/s ↓ | R17: Wh/s ↓ | AD17: Wh/s ↓
D18: Congestion MAX value | F18: n.a. | L18: n.a. | M18: n.a. | N18: n.a. | O18: n.a. | P18: n.a. | Q18: n.a. | Y18: n.a.
D19: Congestion AVG value | F19: n.a. | L19: n.a. | M19: n.a. | N19: n.a. | O19: n.a. | P19: n.a. | Q19: n.a. | Y19: n.a.
B20: DPF Regene-ration | E20: g/km ↓ | F20: g/km ↓ | G20: mg/km ↓ | H20: mg/km ↓ | I20: mg/km ↓ | J20: mg/km ↓ | K20: #/km ↓ | L20: mg/km ↓ | M20: mg/km ↓ | N20: mg/km ↓ | O20: mg/km ↓ | P20: mg/km ↓
C21: Insert name of test with particle filter regeneration occurance
C22: Impact of regen. compared to the non-regenerating test [%]
A24: FALL BACK FUEL | B24: MAIN RESULTS 2 | E24: CO2 tailpipe | F24: CO2 RCB corr. | G24: CO | H24: NOx | I24: NO | J24: NO2 | K24: PN | L24: PM | M24: N2O | N24: NH3 | O24: THC | P24: CH4 | Q24: Fuel Consumption | R24: Energy Consumption from Grid | S24: Fuel consumpt. | T24: Energy consumpt. | U24: Gas Consumption | V24: Board Comp. fuel consumpt. | W24: Board Comp. energy consumpt. | X24: Board Comp. gas consumpt. | Y24: Driving Range (ICE mode) | Z24: Driving Range (electr. mode) | AD24: Electr. energy consumpt. from battery
E25: g/km | F25: g/km | G25: mg/km | H25: mg/km | I25: mg/km | J25: mg/km | K25: #/km | L25: mg/km | M25: mg/km | N25: mg/km | O25: mg/km | P25: mg/km | Q25: l/100km | R25: kWh/100km | S25: g/s | T25: Wh/s | U25: kg/100km | V25: l/100km | W25: kWh/100km | X25: kg/100km | Y25: km | Z25: km | AD25: kWh/100km
B26: Laboratory Tests | C26: WLTC+ appr. | D26: =D4 -> WLTC+ cold engine (23°C)
D27: =D5 -> WLTC+ cold engine 2 (not rated)
D28: WLTC+ cold engine average (not rated)
D29: WLTC+ CAT (-7°C)
C30: Robustness | D30: WLTC+ warm engine
D31: WLTC+ reg. warm engn. rep. (not rated)
D32: BAB130 Motorway
B33: Real-World tests | C33: Approval | D33: PEMS+ cold engine 1
D34: PEMS+ cold engine 2
C35: Short urban trip | D35: Short trip / cold start 1
D36: Short trip / cold start 2
C37: Robustness | D37: PEMS+ Eco / light
D38: PEMS+ Heavy load
E39: g/s ↓ | F39: g/s ↓ | G39: mg/s ↓ | H39: mg/s ↓ | I39: mg/s ↓ | J39: mg/s ↓ | K39: #/s ↓ | M39: mg/s ↓ | O39: mg/s ↓ | R39: Wh/s ↓ | AD39: Wh/s ↓
D40: =D18 -> Congestion MAX value
D41: =D19 -> Congestion AVG value
E42: g/km ↓ | F42: g/km ↓ | G42: mg/km ↓ | H42: mg/km ↓ | I42: mg/km ↓ | J42: mg/km ↓ | K42: #/km ↓ | L42: mg/km ↓ | M42: mg/km ↓ | N42: mg/km ↓ | O42: mg/km ↓ | P42: mg/km ↓
B43: Regene-ration | C43: Insert name of test with particle filter regeneration occurance
C44: Impact of regen. compared to the non-regenerating test [%]

Sheet Clean Air
Q1: 1
B2: 1. Clean Air Index | E2: Test Results | G2: Thresholds | I2: Max score | K2: Fall Back Fuel
E4: Value | F4: Points | G4: Lower | H4: Upper | K4: Value
B5: Standard
B6: =RESULTS!D8 -> WLTC+ warm engine | C6: max points | D6: 10
C7: NMHC | D7: mg/km | E7: =RESULTS!$O$8-RESULTS!$P$8 -> 0 | F7: =IF(OR(Hydrogen,Electric),I7,IF(E7=0,Sliding_Scale(E7,G7,H7,I7,0,Slide_Type),IF(K7/E7>='LIMITS Efficiency'!$E$27,(1-'LIMITS Efficiency'!$E$28)*Sliding_Scale(E7,G7,H7,I7,0,Slide_Type),Sliding_Scale(E7,G7,H7,I7,0,Slide_Type)))) ->  | G7: ='LIMITS Clean Air'!$D$20 -> 0.5 | H7: ='LIMITS Clean Air'!$D$6 -> 58 | I7: 2
C8: NOx | D8: mg/km | E8: =RESULTS!$H$8 -> 0 | F8: =IF(OR(Hydrogen,Electric),I8,IF(E8=0,Sliding_Scale(E8,G8,H8,I8,0,Slide_Type),IF(K8/E8>='LIMITS Efficiency'!$E$27,(1-'LIMITS Efficiency'!$E$28)*Sliding_Scale(E8,G8,H8,I8,0,Slide_Type),Sliding_Scale(E8,G8,H8,I8,0,Slide_Type)))) ->  | G8: ='LIMITS Clean Air'!$D$21 -> 0.5 | H8: ='LIMITS Clean Air'!$D$7 -> 60 | I8: 3
C9: NO2 | D9: mg/km | E9: =RESULTS!$J$8 -> 0 | F9: =IF(OR(Hydrogen,Electric),I9,IF(E9=0,Sliding_Scale(E9,G9,H9,I9,0,Slide_Type),IF(K9/E9>='LIMITS Efficiency'!$E$27,(1-'LIMITS Efficiency'!$E$28)*Sliding_Scale(E9,G9,H9,I9,0,Slide_Type),Sliding_Scale(E9,G9,H9,I9,0,Slide_Type)))) ->  | G9: ='LIMITS Clean Air'!$D$22 -> 0 | H9: ='LIMITS Clean Air'!$D$8 -> 20 | I9: 0
C10: NH3 | D10: mg/km | E10: =RESULTS!$N$8 -> 0 | F10: =IF(OR(Hydrogen,Electric),I10,IF(E10=0,Sliding_Scale(E10,G10,H10,I10,0,Slide_Type),IF(K10/E10>='LIMITS Efficiency'!$E$27,(1-'LIMITS Efficiency'!$E$28)*Sliding_Scale(E10,G10,H10,I10,0,Slide_Type),Sliding_Scale(E10,G10,H10,I10,0,Slide_Type)))) ->  | G10: ='LIMITS Clean Air'!$D$23 -> 0.1 | H10: ='LIMITS Clean Air'!$D$9 -> 10 | I10: 1
C11: CO | D11: mg/km | E11: =RESULTS!G8 -> 0 | F11: =IF(OR(Hydrogen,Electric),I11,IF(E11=0,Sliding_Scale(E11,G11,H11,I11,0,Slide_Type),IF(K11/E11>='LIMITS Efficiency'!$E$27,(1-'LIMITS Efficiency'!$E$28)*Sliding_Scale(E11,G11,H11,I11,0,Slide_Type),Sliding_Scale(E11,G11,H11,I11,0,Slide_Type)))) ->  | G11: ='LIMITS Clean Air'!$D$24 -> 5 | H11: ='LIMITS Clean Air'!$D$10 -> 500 | I11: 1
C12: PM | D12: mg/km | E12: =RESULTS!$L$8 -> 0 | F12: =IF(OR(Hydrogen,Electric),I12,IF(E12=0,Sliding_Scale(E12,G12,H12,I12,0,Slide_Type),IF(K12/E12>='LIMITS Efficiency'!$E$27,(1-'LIMITS Efficiency'!$E$28)*Sliding_Scale(E12,G12,H12,I12,0,Slide_Type),Sliding_Scale(E12,G12,H12,I12,0,Slide_Type)))) ->  | G12: ='LIMITS Clean Air'!$D$25 -> 0 | H12: ='LIMITS Clean Air'!$D$11 -> 4.5 | I12: 0
B13: =IF(E13=0,0,LOG10(E13)) -> 0 | C13: PN23 | D13: #/km | E13: =RESULTS!K8 -> 0 | F13: =Sliding_Scale(B13,'LIMITS Clean Air'!$D$27,'LIMITS Clean Air'!$D$13,'Clean Air'!I13,0,Slide_Type) ->  | G13: ='LIMITS Clean Air'!$D$26 -> 100000000 | H13: ='LIMITS Clean Air'!$D$12 -> 600000000000 | I13: 3
B14: total | F14: =IF(OR(E7:E9>'LIMITS Clean Air'!$E$6:$E$8,'Clean Air'!E11:E13>'LIMITS Clean Air'!$E$10:$E$12),0,MAX(SUM('Clean Air'!F7:F13),0)) -> 
B15: =RESULTS!D4 -> WLTC+ cold engine (23°C) | C15: max points | D15: =SUM(I16:I22) -> 10 | M15: 1 | N15: =LOG10(M15) -> 0 | O15: =Sliding_Scale(N15,'LIMITS Clean Air'!$D$27,'LIMITS Clean Air'!$D$13,10,0,Slide_Type) -> 
C16: NMHC | D16: mg/km | E16: =RESULTS!$O4-RESULTS!$P4 -> 0 | F16: =IF(OR(Hydrogen,Electric),I16,IF(E16=0,Sliding_Scale(E16,G16,H16,I16,0,Slide_Type),IF(K16/E16>='LIMITS Efficiency'!$E$27,(1-'LIMITS Efficiency'!$E$28)*Sliding_Scale(E16,G16,H16,I16,0,Slide_Type),Sliding_Scale(E16,G16,H16,I16,0,Slide_Type)))) ->  | G16: ='LIMITS Clean Air'!$D$20 -> 0.5 | H16: ='LIMITS Clean Air'!$D$6 -> 58 | I16: 2 | K16: =RESULTS!$O$26 -> 0 | M16: 10 | N16: =LOG10(M16) -> 1 | O16: =Sliding_Scale(N16,'LIMITS Clean Air'!$D$27,'LIMITS Clean Air'!$D$13,10,0,Slide_Type) -> 
C17: NOx | D17: mg/km | E17: =RESULTS!$H$4 -> 0 | F17: =IF(OR(Hydrogen,Electric),I17,IF(E17=0,Sliding_Scale(E17,G17,H17,I17,0,Slide_Type),IF(K17/E17>='LIMITS Efficiency'!$E$27,(1-'LIMITS Efficiency'!$E$28)*Sliding_Scale(E17,G17,H17,I17,0,Slide_Type),Sliding_Scale(E17,G17,H17,I17,0,Slide_Type)))) ->  | G17: ='LIMITS Clean Air'!$D$21 -> 0.5 | H17: ='LIMITS Clean Air'!$D$7 -> 60 | I17: 3 | K17: =RESULTS!$H$26 -> 0 | M17: =M16*10 -> 100 | N17: 2 | O17: =Sliding_Scale(N17,'LIMITS Clean Air'!$D$27,'LIMITS Clean Air'!$D$13,10,0,Slide_Type) -> 
C18: NO2 | D18: mg/km | E18: =RESULTS!$J$4 -> 0 | F18: =IF(OR(Hydrogen,Electric),I18,IF(E18=0,Sliding_Scale(E18,G18,H18,I18,0,Slide_Type),IF(K18/E18>='LIMITS Efficiency'!$E$27,(1-'LIMITS Efficiency'!$E$28)*Sliding_Scale(E18,G18,H18,I18,0,Slide_Type),Sliding_Scale(E18,G18,H18,I18,0,Slide_Type)))) ->  | G18: ='LIMITS Clean Air'!$D$22 -> 0 | H18: ='LIMITS Clean Air'!$D$8 -> 20 | I18: 0 | K18: =RESULTS!$M$26 -> 0 | M18: =M17*10 -> 1000 | N18: 3 | O18: =Sliding_Scale(N18,'LIMITS Clean Air'!$D$27,'LIMITS Clean Air'!$D$13,10,0,Slide_Type) -> 
C19: NH3 | D19: mg/km | E19: =RESULTS!$N$4 -> 0 | F19: =IF(OR(Hydrogen,Electric),I19,IF(E19=0,Sliding_Scale(E19,G19,H19,I19,0,Slide_Type),IF(K19/E19>='LIMITS Efficiency'!$E$27,(1-'LIMITS Efficiency'!$E$28)*Sliding_Scale(E19,G19,H19,I19,0,Slide_Type),Sliding_Scale(E19,G19,H19,I19,0,Slide_Type)))) ->  | G19: ='LIMITS Clean Air'!$D$23 -> 0.1 | H19: ='LIMITS Clean Air'!$D$9 -> 10 | I19: 1 | K19: =RESULTS!$N$26 -> 0 | M19: 10000 | N19: 4 | O19: =Sliding_Scale(N19,'LIMITS Clean Air'!$D$27,'LIMITS Clean Air'!$D$13,10,0,Slide_Type) -> 
C20: CO | D20: mg/km | E20: =RESULTS!$G$4 -> 0 | F20: =IF(OR(Hydrogen,Electric),I20,IF(E20=0,Sliding_Scale(E20,G20,H20,I20,0,Slide_Type),IF(K20/E20>='LIMITS Efficiency'!$E$27,(1-'LIMITS Efficiency'!$E$28)*Sliding_Scale(E20,G20,H20,I20,0,Slide_Type),Sliding_Scale(E20,G20,H20,I20,0,Slide_Type)))) ->  | G20: ='LIMITS Clean Air'!$D$24 -> 5 | H20: ='LIMITS Clean Air'!$D$10 -> 500 | I20: 1 | K20: =RESULTS!$G$26 -> 0 | M20: 100000 | N20: 5 | O20: =Sliding_Scale(N20,'LIMITS Clean Air'!$D$27,'LIMITS Clean Air'!$D$13,10,0,Slide_Type) -> 
C21: PM | D21: mg/km | E21: =RESULTS!$L$4 -> 0 | F21: =IF(OR(Hydrogen,Electric),I21,IF(E21=0,Sliding_Scale(E21,G21,H21,I21,0,Slide_Type),IF(K21/E21>='LIMITS Efficiency'!$E$27,(1-'LIMITS Efficiency'!$E$28)*Sliding_Scale(E21,G21,H21,I21,0,Slide_Type),Sliding_Scale(E21,G21,H21,I21,0,Slide_Type)))) ->  | G21: ='LIMITS Clean Air'!$D$25 -> 0 | H21: ='LIMITS Clean Air'!$D$11 -> 4.5 | I21: 0 | K21: =RESULTS!$L$26 -> 0 | M21: 1000000 | N21: 6 | O21: =Sliding_Scale(N21,'LIMITS Clean Air'!$D$27,'LIMITS Clean Air'!$D$13,10,0,Slide_Type) -> 
B22: =IF(E22=0,0,LOG10(E22)) -> 0 | C22: PN23 | D22: #/km | E22: =RESULTS!$K$4 -> 0 | F22: =Sliding_Scale(B22,'LIMITS Clean Air'!$D$27,'LIMITS Clean Air'!$D$13,'Clean Air'!I22,0,Slide_Type) ->  | G22: ='LIMITS Clean Air'!$D$26 -> 100000000 | H22: ='LIMITS Clean Air'!$D$12 -> 600000000000 | I22: 3 | K22: =RESULTS!$K$26 -> 0 | M22: 10000000 | N22: 7 | O22: =Sliding_Scale(N22,'LIMITS Clean Air'!$D$27,'LIMITS Clean Air'!$D$13,10,0,Slide_Type) -> 
B23: total | F23: =IF(OR(E16:E18>'LIMITS Clean Air'!$E$6:$E$8,'Clean Air'!E20:E22>'LIMITS Clean Air'!$E$10:$E$12,K16:K18>'LIMITS Clean Air'!$E$6:$E$8,'Clean Air'!K20:K22>'LIMITS Clean Air'!$E$10:$E$12),0,MAX(SUM('Clean Air'!F16:F22),0)) ->  | M23: 100000000 | N23: 8 | O23: =Sliding_Scale(N23,'LIMITS Clean Air'!$D$27,'LIMITS Clean Air'!$D$13,10,0,Slide_Type) -> 
B24: =RESULTS!D10 -> BAB130 Motorway | C24: max points | D24: =SUM(I25:I31) -> 10 | M24: 1000000000 | N24: 9 | O24: =Sliding_Scale(N24,'LIMITS Clean Air'!$D$27,'LIMITS Clean Air'!$D$13,10,0,Slide_Type) -> 
C25: NMHC | D25: mg/km | E25: =RESULTS!$O$10-RESULTS!$P$10 -> 0 | F25: =IF(OR(Hydrogen,Electric),I25,IF(E25=0,Sliding_Scale(E25,G25,H25,I25,0,Slide_Type),IF(K25/E25>='LIMITS Efficiency'!$E$27,(1-'LIMITS Efficiency'!$E$28)*Sliding_Scale(E25,G25,H25,I25,0,Slide_Type),Sliding_Scale(E25,G25,H25,I25,0,Slide_Type)))) ->  | G25: ='LIMITS Clean Air'!$D$20 -> 0.5 | H25: ='LIMITS Clean Air'!$D$6 -> 58 | I25: 2 | K25: =RESULTS!$O$32 -> 0 | M25: 10000000000 | N25: 10 | O25: =Sliding_Scale(N25,'LIMITS Clean Air'!$D$27,'LIMITS Clean Air'!$D$13,10,0,Slide_Type) -> 
C26: NOx | D26: mg/km | E26: =RESULTS!$H$10 -> 0 | F26: =IF(OR(Hydrogen,Electric),I26,IF(E26=0,Sliding_Scale(E26,G26,H26,I26,0,Slide_Type),IF(K26/E26>='LIMITS Efficiency'!$E$27,(1-'LIMITS Efficiency'!$E$28)*Sliding_Scale(E26,G26,H26,I26,0,Slide_Type),Sliding_Scale(E26,G26,H26,I26,0,Slide_Type)))) ->  | G26: ='LIMITS Clean Air'!$D$21 -> 0.5 | H26: ='LIMITS Clean Air'!$D$7 -> 60 | I26: 3 | K26: =RESULTS!$H$32 -> 0 | M26: 100000000000 | N26: 11 | O26: =Sliding_Scale(N26,'LIMITS Clean Air'!$D$27,'LIMITS Clean Air'!$D$13,10,0,Slide_Type) -> 
C27: NO2 | D27: mg/km | E27: =RESULTS!$J$10 -> 0 | F27: =IF(OR(Hydrogen,Electric),I27,IF(E27=0,Sliding_Scale(E27,G27,H27,I27,0,Slide_Type),IF(K27/E27>='LIMITS Efficiency'!$E$27,(1-'LIMITS Efficiency'!$E$28)*Sliding_Scale(E27,G27,H27,I27,0,Slide_Type),Sliding_Scale(E27,G27,H27,I27,0,Slide_Type)))) ->  | G27: ='LIMITS Clean Air'!$D$22 -> 0 | H27: ='LIMITS Clean Air'!$D$8 -> 20 | I27: 0 | K27: =RESULTS!$M$32 -> 0 | M27: 600000000000 | N27: 11.77815125 | O27: =Sliding_Scale(N27,'LIMITS Clean Air'!$D$27,'LIMITS Clean Air'!$D$13,10,0,Slide_Type) -> 
C28: NH3 | D28: mg/km | E28: =RESULTS!$N$10 -> 0 | F28: =IF(OR(Hydrogen,Electric),I28,IF(E28=0,Sliding_Scale(E28,G28,H28,I28,0,Slide_Type),IF(K28/E28>='LIMITS Efficiency'!$E$27,(1-'LIMITS Efficiency'!$E$28)*Sliding_Scale(E28,G28,H28,I28,0,Slide_Type),Sliding_Scale(E28,G28,H28,I28,0,Slide_Type)))) ->  | G28: ='LIMITS Clean Air'!$D$23 -> 0.1 | H28: ='LIMITS Clean Air'!$D$9 -> 10 | I28: 1 | K28: =RESULTS!$N$32 -> 0 | M28: =M26*10 -> 1000000000000 | N28: 12 | O28: =Sliding_Scale(N28,'LIMITS Clean Air'!$D$27,'LIMITS Clean Air'!$D$13,10,0,Slide_Type) -> 
C29: CO | D29: mg/km | E29: =RESULTS!$G$10 -> 0 | F29: =IF(OR(Hydrogen,Electric),I29,IF(E29=0,Sliding_Scale(E29,G29,H29,I29,0,Slide_Type),IF(K29/E29>='LIMITS Efficiency'!$E$27,(1-'LIMITS Efficiency'!$E$28)*Sliding_Scale(E29,G29,H29,I29,0,Slide_Type),Sliding_Scale(E29,G29,H29,I29,0,Slide_Type)))) ->  | G29: ='LIMITS Clean Air'!$D$24 -> 5 | H29: ='LIMITS Clean Air'!$D$10 -> 500 | I29: 1 | K29: =RESULTS!$G$32 -> 0
C30: PM | D30: mg/km | E30: =RESULTS!$L$10 -> 0 | F30: =IF(OR(Hydrogen,Electric),I30,IF(E30=0,Sliding_Scale(E30,G30,H30,I30,0,Slide_Type),IF(K30/E30>='LIMITS Efficiency'!$E$27,(1-'LIMITS Efficiency'!$E$28)*Sliding_Scale(E30,G30,H30,I30,0,Slide_Type),Sliding_Scale(E30,G30,H30,I30,0,Slide_Type)))) ->  | G30: ='LIMITS Clean Air'!$D$25 -> 0 | H30: ='LIMITS Clean Air'!$D$11 -> 4.5 | I30: 0 | K30: =RESULTS!$L$32 -> 0
B31: =IF(E31=0,0,LOG10(E31)) -> 0 | C31: PN23 | D31: #/km | E31: =RESULTS!$K$10 -> 0 | F31: =Sliding_Scale(B31,'LIMITS Clean Air'!$D$27,'LIMITS Clean Air'!$D$13,'Clean Air'!I31,0,Slide_Type) ->  | G31: ='LIMITS Clean Air'!$D$26 -> 100000000 | H31: ='LIMITS Clean Air'!$D$12 -> 600000000000 | I31: 3 | K31: =RESULTS!$K$32 -> 0
B32: total | F32: =IF(OR(E25:E27>'LIMITS Clean Air'!$E$6:$E$8,'Clean Air'!E29:E31>'LIMITS Clean Air'!$E$10:$E$12,K25:K27>'LIMITS Clean Air'!$E$6:$E$8,'Clean Air'!K29:K31>'LIMITS Clean Air'!$E$10:$E$12),0,MAX(SUM('Clean Air'!F25:F31),0)) -> 
B34: =RESULTS!D11 -> PEMS+ cold engine 1 | C34: max points | D34: =SUM(I36:I41) -> 10
C35: NMHC | D35: mg/km | G35: ='LIMITS Clean Air'!$H$20 -> 0.5 | H35: ='LIMITS Clean Air'!$H$6 -> 76.56
C36: NOx | D36: mg/km | E36: =RESULTS!H11 -> 0 | F36: =IF(OR(Hydrogen,Electric),I36,IF(E36=0,Sliding_Scale(E36,G36,H36,I36,0,Slide_Type),IF(K36/E36>='LIMITS Efficiency'!$E$27,(1-'LIMITS Efficiency'!$E$28)*Sliding_Scale(E36,G36,H36,I36,0,Slide_Type),Sliding_Scale(E36,G36,H36,I36,0,Slide_Type)))) ->  | G36: ='LIMITS Clean Air'!$H$21 -> 0.5 | H36: ='LIMITS Clean Air'!$H$7 -> 79.2 | I36: 4 | K36: =RESULTS!H33 -> 0
C37: NO2 | D37: mg/km | G37: ='LIMITS Clean Air'!$D$22 -> 0 | H37: ='LIMITS Clean Air'!$H$8 -> 26.4 | I37: 0 | K37: =RESULTS!$M$33 -> 0
C38: NH3 | D38: mg/km | G38: ='LIMITS Clean Air'!$D$23 -> 0.1 | H38: ='LIMITS Clean Air'!$H$9 -> 13.2 | I38: 0 | K38: =RESULTS!$N$33 -> 0
C39: CO | D39: mg/km | E39: =RESULTS!$G$11 -> 0 | F39: =IF(OR(Hydrogen,Electric),I39,IF(E39=0,Sliding_Scale(E39,G39,H39,I39,0,Slide_Type),IF(K39/E39>='LIMITS Efficiency'!$E$27,(1-'LIMITS Efficiency'!$E$28)*Sliding_Scale(E39,G39,H39,I39,0,Slide_Type),Sliding_Scale(E39,G39,H39,I39,0,Slide_Type)))) ->  | G39: ='LIMITS Clean Air'!$H$24 -> 5 | H39: ='LIMITS Clean Air'!$H$10 -> 660 | I39: 2 | K39: =RESULTS!$G$33 -> 0
C40: PM | D40: mg/km
B41: =IF(E41=0,0,LOG10(E41)) -> 0 | C41: PN23 | D41: #/km | E41: =RESULTS!$K$11 -> 0 | F41: =Sliding_Scale(B41,'LIMITS Clean Air'!$H$27,'LIMITS Clean Air'!$H$13,'Clean Air'!I41,0,Slide_Type) ->  | G41: ='LIMITS Clean Air'!$H$26 -> 100000000 | H41: ='LIMITS Clean Air'!$H$12 -> 792000000000 | I41: 4 | K41: =RESULTS!$K$33 -> 0
B42: total | F42: =IF(OR(E35:E41>'LIMITS Clean Air'!$I$6:$I$12),0,MAX(SUM('Clean Air'!F35:F41),0)) -> 
B43: PEMS+ cold engine 2 | C43: max points | D43: =SUM(I45:I50) -> 0
C44: NMHC | D44: mg/km | G44: ='LIMITS Clean Air'!$H$20 -> 0.5 | H44: =IF(OR(Petrol,CNG_Mono,CNG_Dual),'LIMITS Clean Air'!H6,IF(Diesel,'LIMITS Clean Air'!H$6,0)) -> 76.56
C45: NOx | D45: mg/km | E45: =RESULTS!H12 -> 0 | F45: =IF(OR(Hydrogen,Electric),I45,IF(E45=0,Sliding_Scale(E45,G45,H45,I45,0,Slide_Type),IF(K45/E45>='LIMITS Efficiency'!$E$27,(1-'LIMITS Efficiency'!$E$28)*Sliding_Scale(E45,G45,H45,I45,0,Slide_Type),Sliding_Scale(E45,G45,H45,I45,0,Slide_Type)))) ->  | G45: ='LIMITS Clean Air'!$H$21 -> 0.5 | H45: =IF(OR(Petrol,CNG_Mono,CNG_Dual),'LIMITS Clean Air'!H7,IF(Diesel,'LIMITS Clean Air'!H$7,0)) -> 79.2 | I45: 0
C46: NO2 | D46: mg/km | G46: ='LIMITS Clean Air'!$D$22 -> 0 | H46: =IF(OR(Petrol,CNG_Mono,CNG_Dual),'LIMITS Clean Air'!H8,IF(Diesel,'LIMITS Clean Air'!H$8,0)) -> 26.4 | I46: 0
C47: NH3 | D47: mg/km | G47: ='LIMITS Clean Air'!$D$23 -> 0.1 | H47: =IF(OR(Petrol,CNG_Mono,CNG_Dual),'LIMITS Clean Air'!H9,IF(Diesel,'LIMITS Clean Air'!H$9,0)) -> 13.2 | I47: 0
C48: CO | D48: mg/km | E48: =RESULTS!G12 -> 0 | F48: =IF(OR(Hydrogen,Electric),I48,IF(E48=0,Sliding_Scale(E48,G48,H48,I48,0,Slide_Type),IF(K48/E48>='LIMITS Efficiency'!$E$27,(1-'LIMITS Efficiency'!$E$28)*Sliding_Scale(E48,G48,H48,I48,0,Slide_Type),Sliding_Scale(E48,G48,H48,I48,0,Slide_Type)))) ->  | G48: ='LIMITS Clean Air'!$H$24 -> 5 | H48: =IF(OR(Petrol,CNG_Mono,CNG_Dual),'LIMITS Clean Air'!H10,IF(Diesel,'LIMITS Clean Air'!H$10,0)) -> 660 | I48: 0
C49: PM | D49: mg/km | G49: ='LIMITS Clean Air'!$H$25 -> 0 | H49: =IF(OR(Petrol,CNG_Mono,CNG_Dual),'LIMITS Clean Air'!H11,IF(Diesel,'LIMITS Clean Air'!H$11,0)) -> 5.94 | I49: 0
B50: =IF(E50=0,0,LOG10(E50)) -> 0 | C50: PN | E50: =RESULTS!$K$12 -> 0 | F50: =IF(E50=0,I50,PN_Score(B50,I50)) -> 0 | G50: ='LIMITS Clean Air'!$H$26 -> 100000000 | H50: =IF(OR(Petrol,CNG_Mono,CNG_Dual),'LIMITS Clean Air'!H12,IF(Diesel,'LIMITS Clean Air'!H$12,0)) -> 792000000000 | I50: 0
B51: total
B52: =RESULTS!D13 -> Short trip / cold start 1 | C52: max points | D52: =SUM(I53:I58) -> 5
C53: NOx | D53: mg/km | E53: =RESULTS!H13 -> 0 | F53: =IF(OR(Hydrogen,Electric),I53,IF(F36=0,0,IF(OR($E$53>='LIMITS Clean Air'!$I$7,$E$56>='LIMITS Clean Air'!I7),0,I53-(E53/'LIMITS Clean Air'!$I$7)*I53))) ->  | G53: ='LIMITS Clean Air'!D21 -> 0.5 | H53: ='LIMITS Clean Air'!$H$7 -> 79.2 | I53: =2.25 -> 2.25
C54: CO | D54: mg/km | E54: =RESULTS!$G$13 -> 0 | F54: =IF(OR(Hydrogen,Electric),I54,IF(F39=0,0,IF(OR($E$54>'LIMITS Clean Air'!$I$10,$E$57>='LIMITS Clean Air'!$I$10),0,I54-(E54/'LIMITS Clean Air'!$I$10)*I54))) ->  | G54: ='LIMITS Clean Air'!D24 -> 5 | H54: ='LIMITS Clean Air'!$H$10 -> 660 | I54: =0.5 -> 0.5
B55: =IF(E55=0,0,LOG10(E55)) -> 0 | C55: PN23 | D55: #/km | E55: =RESULTS!$K$13 -> 0 | F55: =Sliding_Scale(B55,'LIMITS Clean Air'!$H$27,'LIMITS Clean Air'!$H$13,'Clean Air'!I55,0,Slide_Type) ->  | G55: ='LIMITS Clean Air'!$H$26 -> 100000000 | H55: ='LIMITS Clean Air'!$H$12 -> 792000000000 | I55: =2.25 -> 2.25
B56: PEMS 8km (2) | C56: NOx | D56: mg/km | E56: =RESULTS!H14 -> 0 | F56: =IF(OR(Hydrogen,Electric),I56,IF(F36=0,0,IF(OR($E$53>='LIMITS Clean Air'!$M$7,$E$56>='LIMITS Clean Air'!$M$7),0,I56-(E56/'LIMITS Clean Air'!$M$7)*I56))) ->  | G56: ='LIMITS Clean Air'!D21 -> 0.5 | H56: =IF(OR(Petrol,CNG_Mono,CNG_Dual),H53,IF(Diesel,'LIMITS Clean Air'!H$7,0)) -> 79.2 | I56: 0
B57: (cold start / short trip) | C57: CO | D57: mg/km | E57: =RESULTS!$G$14 -> 0 | F57: =IF(OR(Hydrogen,Electric),I57,IF(F39=0,0,IF(OR($E$54>='LIMITS Clean Air'!$M$10,$E$57>='LIMITS Clean Air'!$M$10),0,I57-(E57/'LIMITS Clean Air'!$M$10)*I57))) ->  | G57: ='LIMITS Clean Air'!D24 -> 5 | H57: =IF(OR(Petrol,CNG_Mono,CNG_Dual),H54,IF(Diesel,'LIMITS Clean Air'!H$10,0)) -> 660 | I57: 0
B58: =IF(E58=0,0,LOG10(E58)) -> 0 | C58: PN | E58: =RESULTS!$K$14 -> 0 | F58: =IF(OR(Hydrogen,Electric),I58,IF(OR($E$55>=$H$55,$E$58>=$H$58),0,I58-(E58/H58)*I58)) -> 0 | G58: ='LIMITS Clean Air'!$H$26 -> 100000000 | H58: =IF(OR(Petrol,CNG_Mono,CNG_Dual),H55,IF(Diesel,'LIMITS Clean Air'!H$12,0)) -> 792000000000 | I58: 0
B59: total | F59: =SUM(F53:F55) -> 
B61: Additional Robustness
B62: =RESULTS!D7 -> WLTC+ CAT (-7°C) | C62: max points | D62: =SUM(I63:I69) -> 10
C63: NMHC | D63: mg/km | E63: =RESULTS!$O$7-RESULTS!$P$7 -> 0 | F63: =IF(OR(Hydrogen,Electric),I63,IF(E63=0,Sliding_Scale(E63,G63,H63,I63,0,Slide_Type),IF(K63/E63>='LIMITS Efficiency'!$E$27,(1-'LIMITS Efficiency'!$E$28)*Sliding_Scale(E63,G63,H63,I63,0,Slide_Type),Sliding_Scale(E63,G63,H63,I63,0,Slide_Type)))) ->  | G63: ='LIMITS Clean Air'!$L$20 -> 0.5 | H63: ='LIMITS Clean Air'!$H$6 -> 76.56 | I63: 2
C64: NOx | D64: mg/km | E64: =RESULTS!$H$7 -> 0 | F64: =IF(OR(Hydrogen,Electric),I64,IF(E64=0,Sliding_Scale(E64,G64,H64,I64,0,Slide_Type),IF(K64/E64>='LIMITS Efficiency'!$E$27,(1-'LIMITS Efficiency'!$E$28)*Sliding_Scale(E64,G64,H64,I64,0,Slide_Type),Sliding_Scale(E64,G64,H64,I64,0,Slide_Type)))) ->  | G64: ='LIMITS Clean Air'!$L$21 -> 0.5 | H64: ='LIMITS Clean Air'!$H$7 -> 79.2 | I64: 3
C65: NO2 | D65: mg/km | E65: =RESULTS!$J$7 -> 0 | F65: =IF(OR(Hydrogen,Electric),I65,IF(E65=0,Sliding_Scale(E65,G65,H65,I65,0,Slide_Type),IF(K65/E65>='LIMITS Efficiency'!$E$27,(1-'LIMITS Efficiency'!$E$28)*Sliding_Scale(E65,G65,H65,I65,0,Slide_Type),Sliding_Scale(E65,G65,H65,I65,0,Slide_Type)))) ->  | G65: ='LIMITS Clean Air'!$L$22 -> 0 | H65: ='LIMITS Clean Air'!$H$8 -> 26.4 | I65: 0
C66: NH3 | D66: mg/km | E66: =RESULTS!$N$7 -> 0 | F66: =IF(OR(Hydrogen,Electric),I66,IF(E66=0,Sliding_Scale(E66,G66,H66,I66,0,Slide_Type),IF(K66/E66>='LIMITS Efficiency'!$E$27,(1-'LIMITS Efficiency'!$E$28)*Sliding_Scale(E66,G66,H66,I66,0,Slide_Type),Sliding_Scale(E66,G66,H66,I66,0,Slide_Type)))) ->  | G66: ='LIMITS Clean Air'!$L23 -> 0.1 | H66: ='LIMITS Clean Air'!$H$9 -> 13.2 | I66: 1
C67: CO | D67: mg/km | E67: =RESULTS!$G$7 -> 0 | F67: =IF(OR(Hydrogen,Electric),I67,IF(E67=0,Sliding_Scale(E67,G67,H67,I67,0,Slide_Type),IF(K67/E67>='LIMITS Efficiency'!$E$27,(1-'LIMITS Efficiency'!$E$28)*Sliding_Scale(E67,G67,H67,I67,0,Slide_Type),Sliding_Scale(E67,G67,H67,I67,0,Slide_Type)))) ->  | G67: ='LIMITS Clean Air'!$L$24 -> 5 | H67: ='LIMITS Clean Air'!$H$10 -> 660 | I67: 1
C68: PM | D68: mg/km | E68: =RESULTS!$L$7 -> 0 | F68: =IF(OR(Hydrogen,Electric),I68,IF(E68=0,Sliding_Scale(E68,G68,H68,I68,0,Slide_Type),IF(K68/E68>='LIMITS Efficiency'!$E$27,(1-'LIMITS Efficiency'!$E$28)*Sliding_Scale(E68,G68,H68,I68,0,Slide_Type),Sliding_Scale(E68,G68,H68,I68,0,Slide_Type)))) ->  | G68: ='LIMITS Clean Air'!$L$25 -> 0 | H68: ='LIMITS Clean Air'!$H$11 -> 5.94 | I68: 0
B69: =IF(E69=0,0,LOG10(E69)) -> 0 | C69: PN23 | D69: #/km | E69: =RESULTS!$K$7 -> 0 | F69: =Sliding_Scale(B69,'LIMITS Clean Air'!$L$27,'LIMITS Clean Air'!$L$13,'Clean Air'!I69,0,Slide_Type) ->  | G69: ='LIMITS Clean Air'!$L$26 -> 100000000 | H69: ='LIMITS Clean Air'!$H$12 -> 792000000000 | I69: 3
B70: total | F70: =IF(F101="yes",IF(OR(E63:E65>'LIMITS Clean Air'!$M$6:$M$8,E67:E69>'LIMITS Clean Air'!$M$10:$M$12),0,MAX(SUM('Clean Air'!F63:F69),0)),0) -> 
B71: =RESULTS!D15 -> PEMS+ Eco / light | C71: max points | D71: =SUM(I72:I78) -> 5
C72: NMHC | D72: mg/km | G72: ='LIMITS Clean Air'!$H$20 -> 0.5 | H72: ='LIMITS Clean Air'!$H$6 -> 76.56 | I72: 0
C73: NOx | D73: mg/km | E73: =RESULTS!$H$15 -> 0 | F73: =IF(E73<=E36,I73,IF(E73<'Clean Air'!H36,(0.5*I73),0)) -> 2.25 | G73: ='LIMITS Clean Air'!$H$21 -> 0.5 | H73: ='LIMITS Clean Air'!$H$7 -> 79.2 | I73: 2.25
C74: NO2 | D74: mg/km | G74: ='LIMITS Clean Air'!$D$22 -> 0 | H74: ='LIMITS Clean Air'!$H$8 -> 26.4 | I74: 0
C75: NH3 | D75: mg/km | G75: ='LIMITS Clean Air'!$D$23 -> 0.1 | H75: ='LIMITS Clean Air'!$H$9 -> 13.2 | I75: 0
C76: CO | D76: mg/km | E76: =RESULTS!$G$15 -> 0 | F76: =IF(E76<=E39,I76,IF(E76<'Clean Air'!H39,(0.5*I76),0)) -> 0.5 | G76: ='LIMITS Clean Air'!$H$24 -> 5 | H76: ='LIMITS Clean Air'!$H$10 -> 660 | I76: 0.5
C77: PM | D77: mg/km
B78: =IF(E78=0,0,LOG10(E78)) -> 0 | C78: PN23 | D78: #/km | E78: =RESULTS!$K$15 -> 0 | F78: =Sliding_Scale(B78,'LIMITS Clean Air'!$H$27,'LIMITS Clean Air'!$H$13,'Clean Air'!I78,0,Slide_Type) ->  | G78: ='LIMITS Clean Air'!$H$26 -> 100000000 | H78: ='LIMITS Clean Air'!$H$12 -> 792000000000 | I78: 2.25
F79: =IF(F101="yes",IF(OR(E72:E78>'LIMITS Clean Air'!$I$6:$I$12),0,MAX(SUM('Clean Air'!F72:F78),0)),0) -> 
B80: =RESULTS!D16 -> PEMS+ Heavy load | C80: max points | D80: =SUM(I81:I87) -> 8
C81: NMHC | D81: mg/km | G81: ='LIMITS Clean Air'!$H$20 -> 0.5 | H81: ='LIMITS Clean Air'!$H$6 -> 76.56 | I81: 0
B82: =Sliding_Scale(E82,H36,'LIMITS Clean Air'!M7,I82,0,Slide_Type) ->  | C82: NOx | D82: mg/km | E82: =RESULTS!$H$16 -> 0 | F82: =IF(OR(Hydrogen,Electric),I82,IF(E82=0,Sliding_Scale(E82,G82,H82,I82,0,Slide_Type),IF(K82/E82>='LIMITS Efficiency'!$E$27,(1-'LIMITS Efficiency'!$E$28)*Sliding_Scale(E82,G82,H82,I82,0,Slide_Type),Sliding_Scale(E82,G82,H82,I82,0,Slide_Type)))) ->  | G82: ='LIMITS Clean Air'!D21 -> 0.5 | H82: ='LIMITS Clean Air'!$H$7 -> 79.2 | I82: 3.6
C83: NO2 | D83: mg/km | G83: ='LIMITS Clean Air'!$D$22 -> 0 | H83: ='LIMITS Clean Air'!$H$8 -> 26.4 | I83: 0
C84: NH3 | D84: mg/km | G84: ='LIMITS Clean Air'!$D$23 -> 0.1 | H84: ='LIMITS Clean Air'!$H$9 -> 13.2 | I84: 0
B85: =Sliding_Scale(E85,H39,'LIMITS Clean Air'!M10,I85,0,Slide_Type) ->  | C85: CO | D85: mg/km | E85: =RESULTS!$G$16 -> 0 | F85: =IF(OR(Hydrogen,Electric),I85,IF(E85=0,Sliding_Scale(E85,G85,H85,I85,0,Slide_Type),IF(K85/E85>='LIMITS Efficiency'!$E$27,(1-'LIMITS Efficiency'!$E$28)*Sliding_Scale(E85,G85,H85,I85,0,Slide_Type),Sliding_Scale(E85,G85,H85,I85,0,Slide_Type)))) ->  | G85: ='LIMITS Clean Air'!D24 -> 5 | H85: ='LIMITS Clean Air'!$H$10 -> 660 | I85: 0.8
C86: PM | D86: mg/km
B87: =IF(E87=0,0,LOG10(E87)) -> 0 | C87: PN23 | D87: #/km | E87: =RESULTS!$K$16 -> 0 | F87: =Sliding_Scale(B87,'LIMITS Clean Air'!$H$27,'LIMITS Clean Air'!$H$13,'Clean Air'!I87,0,Slide_Type) ->  | G87: ='LIMITS Clean Air'!$H$26 -> 100000000 | H87: ='LIMITS Clean Air'!$H$12 -> 792000000000 | I87: 3.6
F88: =IF(F101="yes",IF(OR(E81:E87>'LIMITS Clean Air'!$I$6:$I$12),0,MAX(SUM('Clean Air'!F81:F87),0)),0) -> 
B89: PEMS Congestion | C89: max points | D89: =SUM(I90:I97) -> 2
C90: NMHC | D90: mg/s | I90: 0
C91: NOx AVG | D91: mg/s | E91: =RESULTS!$H$19 -> 0 | F91: =IF(E91<H91,I91,0) -> 1 | H91: ='LIMITS Clean Air'!Q7 -> 0.5 | I91: 1
C92: NOx MAX | D92: mg/s | E92: =RESULTS!$H$18 -> 0 | F92: =IF(AND(E91<H91,E92<H92),I92,0) -> 1 | H92: ='LIMITS Clean Air'!P7 -> 1 | I92: 1
C93: NO2 | D93: mg/s | I93: 0
C94: NH3 | D94: mg/s | I94: 0
C95: CO | D95: mg/s | I95: 0
C96: PM | D96: mg/s
B97: =IF(E97=0,0,LOG10(E97)) -> 0 | C97: PN23 | D97: #/km | I97: 0
F98: =IF(F101="yes",SUM(F91:F97),0) -> 
B100: Standard Testing Summary | D100: max | E100: score | F100: Stage 2?
B101: Points | D101: =D52+D43+D24+D15+D6+D34 -> 45 | E101: =F59+F51+F32+F42+F14+F23 ->  | F101: =IF(AND(AVERAGE(E102,Efficiency!F29,Greenhouse!F93)>='LIMITS Clean Air'!P20,(MIN(Greenhouse!F93,Efficiency!F29,'Clean Air'!E102)>='LIMITS Clean Air'!P24)),"YES","NO") -> 
B102: Subscore | E102: =ROUNDDOWN(10*(E101/D101),1) -> 
B104: Additional Robustness Testing Summary | D104: max | E104: score
B105: Points | D105: =D89+D80+D71+D62 -> 25 | E105: =IF(F101="no",0,F98+F88+F79+F70) ->  | H105: test distribution
B106: Subscore | E106: =ROUNDDOWN(10*(E105/D105),1) ->  | H106: LAB | I106: =SUM(D6,D15,D62,D24) -> 40 | J106: =(I106)/(I107+I106) -> 0.5714285714
H107: PEMS | I107: =SUM(D89,D80,D71,D43,D34,D52) -> 30 | J107: =I107/(I106+I107) -> 0.4285714286
B108: Total | D108: =D105+D101 -> 70 | E108: =E105+E101 ->  | H108: Phase 1 | I108: =D101 -> 45 | J108: =(I108)/(I109+I108) -> 0.6428571429
B109: TOTAL SCORE CLEAN AIR | D109: (0-10pts) | E109: =IF('OVERALL RATING (avg)'!E14="YES",ROUNDDOWN((10*(E105+E101)/(D101+D105)),1),ROUNDDOWN((10*E101/D101),1)) ->  | H109: Phase 2 | I109: =D105 -> 25 | J109: =I109/(I108+I109) -> 0.3571428571

Sheet Efficiency
B2: 2. Energy Efficiency Index | E2: Test Results | G2: Thresholds | I2: Max score
E4: Value | F4: Points | G4: Lower | H4: Upper
B6: 2.1 | C6: Test cycle measurements
B8: 2.1.2 | C8: Energy Consumption (total)
C9: max points | D9: =I19 -> 40 | E9: Value | F9: Points | G9: Lower | H9: Upper | I9: Max score
B10: Standard | C10: =RESULTS!D4 -> WLTC+ cold engine (23°C) | D10: kWh/100km | E10: =IF(Petrol,Efficiency!M23*'LIMITS Efficiency'!$C$19,IF(Diesel,Efficiency!M23*'LIMITS Efficiency'!$C$20,IF(E_85,Efficiency!M23*'LIMITS Efficiency'!$C$24,IF(CNG_Mono,S23*'LIMITS Efficiency'!$C$21,IF(Hydrogen,S23*'LIMITS Efficiency'!$C$23,IF(CNG_Dual,S23*'LIMITS Efficiency'!$C$21+Efficiency!M23*'LIMITS Efficiency'!$C$19,0)))))+P23) -> 0 | F10: =MAX(0,Sliding_Scale(E10,G10,H10,I10,0,Slide_Type)) ->  | G10: ='LIMITS Efficiency'!E6 -> 20 | H10: ='LIMITS Efficiency'!F6 -> 90 | I10: 10
B11: Additional | C11: =RESULTS!D7 -> WLTC+ CAT (-7°C) | D11: kWh/100km | E11: =IF(Petrol,Efficiency!M24*'LIMITS Efficiency'!$C$19,IF(Diesel,Efficiency!M24*'LIMITS Efficiency'!$C$20,IF(E_85,Efficiency!M24*'LIMITS Efficiency'!$C$24,IF(CNG_Mono,S24*'LIMITS Efficiency'!$C$21,IF(Hydrogen,S24*'LIMITS Efficiency'!$C$23,IF(CNG_Dual,S24*'LIMITS Efficiency'!$C$21+Efficiency!M24*'LIMITS Efficiency'!$C$19,0)))))+P24) -> 0 | F11: =IF(G29="yes",MAX(0,Sliding_Scale(E11,G11,H11,I11,0,Slide_Type)),0) ->  | G11: ='LIMITS Efficiency'!E7 -> 20 | H11: ='LIMITS Efficiency'!F7 -> 90 | I11: 10
B12: Standard | C12: =RESULTS!D8 -> WLTC+ warm engine | D12: kWh/100km | E12: =IF(Petrol,Efficiency!M25*'LIMITS Efficiency'!$C$19,IF(Diesel,Efficiency!M25*'LIMITS Efficiency'!$C$20,IF(E_85,Efficiency!M25*'LIMITS Efficiency'!$C$24,IF(CNG_Mono,S25*'LIMITS Efficiency'!$C$21,IF(Hydrogen,S25*'LIMITS Efficiency'!$C$23,IF(CNG_Dual,S25*'LIMITS Efficiency'!$C$21+Efficiency!M25*'LIMITS Efficiency'!$C$19,0)))))+P25) -> 0 | F12: =MAX(0,Sliding_Scale(E12,G12,H12,I12,0,Slide_Type)) ->  | G12: ='LIMITS Efficiency'!E8 -> 20 | H12: ='LIMITS Efficiency'!F8 -> 90 | I12: 10
C13: =RESULTS!D11 -> PEMS+ cold engine 1 | D13: kWh/100km | G13: ='LIMITS Efficiency'!E11 -> 20 | H13: ='LIMITS Efficiency'!F11 -> 90 | I13: 0
C14: =RESULTS!D12 -> PEMS+ cold engine 2 | D14: kWh/100km | G14: ='LIMITS Efficiency'!E10 -> 20 | H14: ='LIMITS Efficiency'!F10 -> 90 | I14: 0
B15: Standard | C15: =RESULTS!D10 -> BAB130 Motorway | D15: kWh/100km | E15: =IF(Petrol,Efficiency!M28*'LIMITS Efficiency'!$C$19,IF(Diesel,Efficiency!M28*'LIMITS Efficiency'!$C$20,IF(E_85,Efficiency!M28*'LIMITS Efficiency'!$C$24,IF(CNG_Mono,S28*'LIMITS Efficiency'!$C$21,IF(Hydrogen,S28*'LIMITS Efficiency'!$C$23,IF(CNG_Dual,S28*'LIMITS Efficiency'!$C$21+Efficiency!M28*'LIMITS Efficiency'!$C$19,0)))))+P28) -> 0 | F15: =MAX(0,Sliding_Scale(E15,G15,H15,I15,0,2)) ->  | G15: ='LIMITS Efficiency'!E12 -> 20 | H15: ='LIMITS Efficiency'!F12 -> 90 | I15: 10
C16: =RESULTS!D15 -> PEMS+ Eco / light | D16: kWh/100km | G16: ='LIMITS Efficiency'!$E$13 -> 20 | H16: ='LIMITS Efficiency'!$F$13 -> 90 | I16: 0
C17: =RESULTS!D16 -> PEMS+ Heavy load | D17: kWh/100km | G17: ='LIMITS Efficiency'!$E$13 -> 20 | H17: ='LIMITS Efficiency'!$F$13 -> 90 | I17: 0
C18: =RESULTS!D13 -> Short trip / cold start 1 | D18: kWh/100km | G18: ='LIMITS Efficiency'!$E$13 -> 20 | H18: ='LIMITS Efficiency'!$F$13 -> 90 | I18: 0
B19: total | F19: =(SUM(F10:F16)) ->  | I19: =SUM(I10:I16) -> 40
U20: Conversion from l/100km or kg/100km to kWh/100km for different energy carriers
B21: 2.2 | C21: Driving Range (lab test average) | E21: Deviation | G21: Declared Range | K21: 2.1.2.1 | N21: 2.1.2.2 | Q21: 2.1.2.3 | U21: 2.1.2.4 | X21: 2.1.2.5 | AA21: 2.1.2.6
E22: % | G22: km | K22: Fuel Consumption (liquid fuel) | N22: Energy Consumption (electric energy) | Q22: Gas Consumption (CNG, Hydrogen) | U22: Fuel Consumption (liquid fuel) | X22: Energy Consumption (electric energy) | AA22: Gas Consumption (CNG, Hydrogen)
K23: =$C$10 -> WLTC+ cold engine (23°C) | L23: l/100km | M23: =IF(OR(Petrol,Diesel,CNG_Dual,E_85),MAX(RESULTS!$Q$4,RESULTS!$Q$26),0) -> 0 | N23: =$C$10 -> WLTC+ cold engine (23°C) | O23: kWh/100km | P23: =IF(Electric,MAX(RESULTS!R4,RESULTS!R26),0) -> 0 | Q23: =$C$10 -> WLTC+ cold engine (23°C) | R23: kg/100km | S23: =IF(OR(CNG_Mono,CNG_Dual,Hydrogen),MAX(RESULTS!U4,RESULTS!U26),0) -> 0 | U23: =$C$10 -> WLTC+ cold engine (23°C) | V23: kWh/100km | W23: =M23*IF(Petrol,'LIMITS Efficiency'!$C$19,IF(Diesel,'LIMITS Efficiency'!$C$20,IF(E_85,'LIMITS Efficiency'!$C$24,IF(CNG_Dual,'LIMITS Efficiency'!$C$19)))) -> 0 | X23: WLTC cold+ (23 degr C) | Y23: kWh/100km | Z23: =P23 -> 0 | AA23: WLTC cold+ (23 degr C) | AB23: kWh/100km | AC23: =S23*IF(OR(CNG_Mono,CNG_Dual),'LIMITS Efficiency'!$C$21,IF(Hydrogen,'LIMITS Efficiency'!$C$23,0)) -> 0
C24: BEV | D24: only | E24: =IF(AND(M54=0,P54>0),-(G24-P54)/G24,0) -> 0 | F24: =-(IF(E24>-'LIMITS Efficiency'!E37,0,IF(E24<-'LIMITS Efficiency'!E38,I24,(ABS(E24)-'LIMITS Efficiency'!E37)*I24/('LIMITS Efficiency'!E38-'LIMITS Efficiency'!E37)))) -> 0 | G24: =SPECS!B16 -> 0 | I24: ='LIMITS Efficiency'!D38 -> 5 | K24: =$C$11 -> WLTC+ CAT (-7°C) | L24: l/100km | M24: =IF(OR(Petrol,Diesel,CNG_Dual,E_85),MAX(RESULTS!$Q$7,RESULTS!$Q$29),0) -> 0 | N24: =$C$11 -> WLTC+ CAT (-7°C) | O24: kWh/100km | P24: =IF(Electric,MAX(RESULTS!R7,RESULTS!R29),0) -> 0 | Q24: =$C$11 -> WLTC+ CAT (-7°C) | R24: kg/100km | S24: =IF(OR(CNG_Mono,CNG_Dual,Hydrogen),MAX(RESULTS!U7,RESULTS!U29),0) -> 0 | U24: =$C$11 -> WLTC+ CAT (-7°C) | V24: kWh/100km | W24: =M24*IF(Petrol,'LIMITS Efficiency'!$C$19,IF(Diesel,'LIMITS Efficiency'!$C$20,IF(E_85,'LIMITS Efficiency'!$C$24,IF(CNG_Dual,'LIMITS Efficiency'!$C$19)))) -> 0 | X24: WLTC cold+ (-7 degr C) | Y24: kWh/100km | Z24: =P24 -> 0 | AA24: WLTC cold+ (-7 degr C) | AB24: kWh/100km | AC24: =S24*IF(OR(CNG_Mono,CNG_Dual),'LIMITS Efficiency'!$C$21,IF(Hydrogen,'LIMITS Efficiency'!$C$23,0)) -> 0
B25: total | F25: =SUM(F24:F24) -> 0 | K25: =$C$12 -> WLTC+ warm engine | L25: l/100km | M25: =IF(OR(Petrol,Diesel,CNG_Dual,E_85),MAX(RESULTS!$Q$8,RESULTS!$Q$30),0) -> 0 | N25: =$C$12 -> WLTC+ warm engine | O25: kWh/100km | P25: =IF(Electric,MAX(RESULTS!R8,RESULTS!R30),0) -> 0 | Q25: =$C$12 -> WLTC+ warm engine | R25: kg/100km | S25: =IF(OR(CNG_Mono,CNG_Dual,Hydrogen),MAX(RESULTS!U8,RESULTS!U30),0) -> 0 | U25: =$C$12 -> WLTC+ warm engine | V25: kWh/100km | W25: =M25*IF(Petrol,'LIMITS Efficiency'!$C$19,IF(Diesel,'LIMITS Efficiency'!$C$20,IF(E_85,'LIMITS Efficiency'!$C$24,IF(CNG_Dual,'LIMITS Efficiency'!$C$19)))) -> 0 | X25: WLTC+ warm engine | Y25: kWh/100km | Z25: 0 | AA25: WLTC+ warm engine | AB25: kWh/100km | AC25: =S25*IF(OR(CNG_Mono,CNG_Dual),'LIMITS Efficiency'!$C$21,IF(Hydrogen,'LIMITS Efficiency'!$C$23,0)) -> 0
K26: =$C$13 -> PEMS+ cold engine 1 | L26: l/100km | M26: =IF(OR(Petrol,Diesel,CNG_Dual,E_85),MAX(RESULTS!$Q$11,RESULTS!$Q$33),0) -> 0 | N26: =$C$13 -> PEMS+ cold engine 1 | O26: kWh/100km | P26: =IF(Electric,MAX(RESULTS!R11,RESULTS!R33),0) -> 0 | Q26: =$C$13 -> PEMS+ cold engine 1 | R26: kg/100km | S26: =IF(OR(CNG_Mono,CNG_Dual,Hydrogen),MAX(RESULTS!U11,RESULTS!U33),0) -> 0 | U26: =$C$13 -> PEMS+ cold engine 1 | V26: kWh/100km | W26: =M26*IF(Petrol,'LIMITS Efficiency'!$C$19,IF(Diesel,'LIMITS Efficiency'!$C$20,IF(E_85,'LIMITS Efficiency'!$C$24,IF(CNG_Dual,'LIMITS Efficiency'!$C$19)))) -> 0 | X26: PEMS+ cold engine | Y26: kWh/100km | Z26: 0 | AA26: PEMS+ cold engine | AB26: kWh/100km | AC26: =S26*IF(OR(CNG_Mono,CNG_Dual),'LIMITS Efficiency'!$C$21,IF(Hydrogen,'LIMITS Efficiency'!$C$23,0)) -> 0
B27: SUMMARY | D27: max points | E27: score | F27: sub score | G27: Stage 2? | K27: =$C$14 -> PEMS+ cold engine 2 | L27: l/100km | M27: =IF(OR(Petrol,Diesel,CNG_Dual,E_85),MAX(RESULTS!$Q$12,RESULTS!$Q$34),0) -> 0 | N27: =$C$14 -> PEMS+ cold engine 2 | O27: kWh/100km | P27: =IF(Electric,MAX(RESULTS!R12,RESULTS!R34),0) -> 0 | Q27: =$C$14 -> PEMS+ cold engine 2 | R27: kg/100km | S27: =IF(OR(CNG_Mono,CNG_Dual,Hydrogen),MAX(RESULTS!U12,RESULTS!U34),0) -> 0 | U27: =$C$14 -> PEMS+ cold engine 2 | V27: kWh/100km | W27: =M27*IF(Petrol,'LIMITS Efficiency'!$C$19,IF(Diesel,'LIMITS Efficiency'!$C$20,IF(E_85,'LIMITS Efficiency'!$C$24,IF(CNG_Dual,'LIMITS Efficiency'!$C$19)))) -> 0 | X27: PEMS+ cold engine2 | Y27: kWh/100km | Z27: 0 | AA27: PEMS+ cold engine2 | AB27: kWh/100km | AC27: =S27*IF(OR(CNG_Mono,CNG_Dual),'LIMITS Efficiency'!$C$21,IF(Hydrogen,'LIMITS Efficiency'!$C$23,0)) -> 0
K28: =$C$15 -> BAB130 Motorway | L28: l/100km | M28: =IF(OR(Petrol,Diesel,CNG_Dual,E_85),MAX(RESULTS!$Q$10,RESULTS!$Q$32),0) -> 0 | N28: =$C$15 -> BAB130 Motorway | O28: kWh/100km | P28: =IF(Electric,MAX(RESULTS!R10,RESULTS!R32),0) -> 0 | Q28: =$C$15 -> BAB130 Motorway | R28: kg/100km | S28: =IF(OR(CNG_Mono,CNG_Dual,Hydrogen),MAX(RESULTS!U10,RESULTS!U32),0) -> 0 | U28: =$C$15 -> BAB130 Motorway | V28: kWh/100km | W28: =M28*IF(Petrol,'LIMITS Efficiency'!$C$19,IF(Diesel,'LIMITS Efficiency'!$C$20,IF(E_85,'LIMITS Efficiency'!$C$24,IF(CNG_Dual,'LIMITS Efficiency'!$C$19)))) -> 0 | X28: BAB130 | Y28: kWh/100km | Z28: 0 | AA28: BAB130 | AB28: kWh/100km | AC28: =S28*IF(OR(CNG_Mono,CNG_Dual),'LIMITS Efficiency'!$C$21,IF(Hydrogen,'LIMITS Efficiency'!$C$23,0)) -> 0
B29: Standard Testing | D29: =I10+I15+I12 -> 30 | E29: =F10+F15+F12 ->  | F29: =ROUNDDOWN(10*(E29/D29),1) ->  | G29: =IF(AND(AVERAGE(F29,Greenhouse!F93,'Clean Air'!E102)>='LIMITS Clean Air'!P20,MIN('Clean Air'!E102,Efficiency!F29,Greenhouse!F93)>='LIMITS Clean Air'!P24),"YES","NO") ->  | K29: =$C$16 -> PEMS+ Eco / light | L29: l/100km | M29: =IF(OR(Petrol,Diesel,CNG_Dual,E_85),MAX(RESULTS!$Q$15,RESULTS!$Q$37),0) -> 0 | N29: =$C$16 -> PEMS+ Eco / light | O29: kWh/100km | P29: =IF(Electric,MAX(RESULTS!R15,RESULTS!R37),0) -> 0 | Q29: =$C$16 -> PEMS+ Eco / light | R29: kg/100km | S29: =IF(OR(CNG_Mono,CNG_Dual,Hydrogen),MAX(RESULTS!U15,RESULTS!U37),0) -> 0 | U29: =$C$16 -> PEMS+ Eco / light | V29: kWh/100km | W29: =M29*IF(Petrol,'LIMITS Efficiency'!$C$19,IF(Diesel,'LIMITS Efficiency'!$C$20,IF(E_85,'LIMITS Efficiency'!$C$24,IF(CNG_Dual,'LIMITS Efficiency'!$C$19)))) -> 0 | X29: PEMS light test | Y29: kWh/100km | Z29: 0 | AA29: PEMS light test | AB29: kWh/100km | AC29: =S29*IF(OR(CNG_Mono,CNG_Dual),'LIMITS Efficiency'!$C$21,IF(Hydrogen,'LIMITS Efficiency'!$C$23,0)) -> 0
B30: Additional Robustness Testing | D30: =I11 -> 10 | E30: =IF(G29="yes",F11,0) ->  | F30: =ROUNDDOWN(10*(E30/D30),1) ->  | K30: =$C$17 -> PEMS+ Heavy load | L30: l/100km | M30: =IF(OR(Petrol,Diesel,CNG_Dual,E_85),MAX(RESULTS!$Q$16,RESULTS!$Q$38),0) -> 0 | N30: =$C$17 -> PEMS+ Heavy load | O30: kWh/100km | P30: =IF(Electric,MAX(RESULTS!R16,RESULTS!R38),0) -> 0 | Q30: =$C$17 -> PEMS+ Heavy load | R30: kg/100km | S30: =IF(OR(CNG_Mono,CNG_Dual,Hydrogen),MAX(RESULTS!U16,RESULTS!U38),0) -> 0 | U30: =$C$17 -> PEMS+ Heavy load | V30: kWh/100km | W30: =M30*IF(Petrol,'LIMITS Efficiency'!$C$19,IF(Diesel,'LIMITS Efficiency'!$C$20,IF(E_85,'LIMITS Efficiency'!$C$24,IF(CNG_Dual,'LIMITS Efficiency'!$C$19)))) -> 0 | X30: PEMS heavy test | Y30: kWh/100km | Z30: 0 | AA30: PEMS heavy test | AB30: kWh/100km | AC30: =S30*IF(OR(CNG_Mono,CNG_Dual),'LIMITS Efficiency'!$C$21,IF(Hydrogen,'LIMITS Efficiency'!$C$23,0)) -> 0
K31: =$C$18 -> Short trip / cold start 1 | L31: l/100km | M31: =IF(OR(Petrol,Diesel,CNG_Dual,E_85),MAX(RESULTS!$Q$13,RESULTS!$Q$35),0) -> 0 | N31: =$C$18 -> Short trip / cold start 1 | O31: kWh/100km | P31: =IF(Electric,MAX(RESULTS!R13,RESULTS!R35),0) -> 0 | Q31: =$C$18 -> Short trip / cold start 1 | R31: kg/100km | S31: =IF(OR(CNG_Mono,CNG_Dual,Hydrogen),MAX(RESULTS!U13,RESULTS!U35),0) -> 0 | U31: =$C$18 -> Short trip / cold start 1 | V31: kWh/100km | W31: =M31*IF(Petrol,'LIMITS Efficiency'!$C$19,IF(Diesel,'LIMITS Efficiency'!$C$20,IF(E_85,'LIMITS Efficiency'!$C$24,IF(CNG_Dual,'LIMITS Efficiency'!$C$19)))) -> 0 | X31: PEMS 8 km | Y31: kWh/100km | Z31: 0 | AA31: PEMS 8 km | AB31: kWh/100km | AC31: =S31*IF(OR(CNG_Mono,CNG_Dual),'LIMITS Efficiency'!$C$21,IF(Hydrogen,'LIMITS Efficiency'!$C$23,0)) -> 0
B32: TOTAL | D32: =D29+D30 -> 40 | E32: =E29+E30 ->  | K32: Average | L32: l/100km | M32: =AVERAGE(M$23,M$25,M$28) -> 0 | N32: Average | O32: kWh/100km | P32: =AVERAGE(P$23,P$25,P$28) -> 0 | Q32: Average | R32: kg/100km | S32: =AVERAGE(S$23,S$25,S$28) -> 0 | U32: Average | V32: kWh/100km | W32: =AVERAGE(W$23,W$25,W$28) -> 0 | X32: Average | Y32: kWh/100km | Z32: =AVERAGE(Z$23,Z$25,Z$28) -> 0 | AA32: Average | AB32: kWh/100km | AC32: =AVERAGE(AC$23,AC$25,AC$28) -> 0
B33: TOTAL SCORE ENERGY EFFICIENCY | E33: (0-10pts) | F33: =IF('OVERALL RATING (avg)'!E14="YES",ROUNDDOWN((10*(E32/D32)),1),ROUNDDOWN((10*(E29/D29)),1)) ->  | K33: Warm Test (Lab) | L33: l/100km | M33: =M25 -> 0 | N33: Warm Test (Lab) | O33: kWh/100km | P33: =P25 -> 0 | Q33: Warm Test (Lab) | R33: kg/100km | S33: =S25 -> 0 | U33: Warm Test (Lab) | V33: kWh/100km | W33: =W25 -> 0 | X33: Warm Test (Lab) | Y33: kWh/100km | Z33: =Z25 -> 0 | AA33: Warm Test (Lab) | AB33: kWh/100km | AC33: =AC25 -> 0
K34: Highway | L34: l/100km | M34: =M28 -> 0 | N34: Highway | O34: kWh/100km | P34: =P28 -> 0 | Q34: Highway | R34: kg/100km | S34: =S28 -> 0 | U34: Highway | V34: kWh/100km | W34: =W28 -> 0 | X34: Highway | Y34: kWh/100km | Z34: =Z28 -> 0 | AA34: Highway | AB34: kWh/100km | AC34: =AC28 -> 0
K35: Cold Ambient Test | L35: l/100km | M35: =IF(G29="yes",M24,"-") ->  | N35: Cold Ambient Test | O35: kWh/100km | P35: =IF(G29="yes",P24,"-") ->  | Q35: Cold Ambient Test | R35: kg/100km | S35: =IF(G29="yes",S24,"-") ->  | U35: Cold Ambient Test | V35: kWh/100km | W35: =IF(G29="yes",W24,"-") ->  | X35: Cold Ambient Test | Y35: kWh/100km | Z35: =IF(G29="yes",Z24,"-") ->  | AA35: Cold Ambient Test | AB35: kWh/100km | AC35: =IF(G29="yes",AC24,"-") -> 
K36: Best Case for LCA | L36: l/100km | M36: =IF('OVERALL RATING (avg)'!E14="YES",MIN(Efficiency!M23:M26,Efficiency!M28:M30),MIN(Efficiency!M23,Efficiency!M25,Efficiency!M26,Efficiency!M28)) ->  | N36: Best Case for LCA | O36: kWh/100km | P36: =IF('OVERALL RATING (avg)'!E14="YES",IF(Electric,MIN(Efficiency!P23:P26,Efficiency!P28),MIN(Efficiency!P23:P26,Efficiency!P28:P30)),MIN(Efficiency!P23,Efficiency!P25,Efficiency!P26,Efficiency!P28)) ->  | Q36: Best Case for LCA | R36: kg/100km | S36: =IF('OVERALL RATING (avg)'!E14="YES",MIN(Efficiency!S23:S26,Efficiency!S28:S30),MIN(Efficiency!S23,Efficiency!S25,Efficiency!S26,Efficiency!S28)) ->  | U36: Best Case for LCA | V36: kWh/100km | W36: =IF('OVERALL RATING (avg)'!O14="YES",MIN(Efficiency!W23:W26,Efficiency!W28:W30),MIN(Efficiency!W23,Efficiency!W25,Efficiency!W26,Efficiency!W28)) -> 0 | X36: Best Case for LCA | Y36: kWh/100km | Z36: =IF('OVERALL RATING (avg)'!R14="YES",MIN(Efficiency!Z23:Z26,Efficiency!Z28:Z30),MIN(Efficiency!Z23,Efficiency!Z25,Efficiency!Z26,Efficiency!Z28)) -> 0 | AA36: Best Case for LCA | AB36: kWh/100km | AC36: =IF('OVERALL RATING (avg)'!U14="YES",MIN(Efficiency!AC23:AC26,Efficiency!AC28:AC30),MIN(Efficiency!AC23,Efficiency!AC25,Efficiency!AC26,Efficiency!AC28)) -> 0
K37: Worst Case for LCA | L37: l/100km | M37: =MAX(M23:M26,M28:M30) -> 0 | N37: Worst Case for LCA | O37: kWh/100km | P37: =IF(Electric,MAX(P23:P26,P28),MAX(P23:P26,P28:P30)) -> 0 | Q37: Worst Case for LCA | R37: kg/100km | S37: =MAX(S23:S26,S28:S30) -> 0 | U37: Worst Case for LCA | V37: kWh/100km | W37: =MAX(W23:W26,W28:W30) -> 0 | X37: Worst Case for LCA | Y37: kWh/100km | Z37: =MAX(Z23:Z26,Z28:Z30) -> 0 | AA37: Worst Case for LCA | AB37: kWh/100km | AC37: =MAX(AC23:AC26,AC28:AC30) -> 0
K40: 2.2.1 | N40: 2.2.2 | Q40: 2.2.3
K42: Driving Range (liquid fuel) | N42: Driving Range (electric energy) | Q42: Driving Range (CNG, Hydrogen)
K43: =$C$10 -> WLTC+ cold engine (23°C) | L43: km | M43: =IF(OR(Petrol,Diesel,CNG_Dual,E_85),IF(M23>0,100*SPECS!$B$9/M23,0),0) -> 0 | N43: =$C$10 -> WLTC+ cold engine (23°C) | O43: km | P43: =IF(Electric,IF(P23>0,100*SPECS!$B$37/P23,0),0) -> 0 | Q43: =$C$10 -> WLTC+ cold engine (23°C) | R43: km | S43: =IF(OR(CNG_Mono,Hydrogen),IF(S23>0,100*SPECS!$B$10/S23,0),0) -> 0
K44: =$C$11 -> WLTC+ CAT (-7°C) | L44: km | M44: =IF(OR(Petrol,Diesel,CNG_Dual,E_85),IF(M24>0,100*SPECS!$B$9/M24,0),0) -> 0 | N44: =$C$11 -> WLTC+ CAT (-7°C) | O44: km | P44: =IF(Electric,IF(P24>0,100*SPECS!$B$37/P24,0),0) -> 0 | Q44: =$C$11 -> WLTC+ CAT (-7°C) | R44: km | S44: =IF(OR(CNG_Mono,CNG_Dual,Hydrogen),IF(S24>0,100*SPECS!$B$10/S24,0),0) -> 0
K45: =$C$12 -> WLTC+ warm engine | L45: km | M45: =IF(OR(Petrol,Diesel,CNG_Dual,E_85),IF(M25>0,100*SPECS!$B$9/M25,0),0) -> 0 | N45: =$C$12 -> WLTC+ warm engine | O45: km | P45: =IF(Electric,IF(P25>0,100*SPECS!$B$37/P25,0),0) -> 0 | Q45: =$C$12 -> WLTC+ warm engine | R45: km | S45: =IF(OR(CNG_Mono,CNG_Dual,Hydrogen),IF(S25>0,100*SPECS!$B$10/S25,0),0) -> 0
K46: =$C$13 -> PEMS+ cold engine 1 | L46: km | M46: =IF(OR(Petrol,Diesel,CNG_Dual,E_85),IF(M26>0,100*SPECS!$B$9/M26,0),0) -> 0 | N46: =$C$13 -> PEMS+ cold engine 1 | O46: km | P46: =IF(Electric,IF(P26>0,100*SPECS!$B$37/P26,0),0) -> 0 | Q46: =$C$13 -> PEMS+ cold engine 1 | R46: km | S46: =IF(OR(CNG_Mono,CNG_Dual,Hydrogen),IF(S26>0,100*SPECS!$B$10/S26,0),0) -> 0
K47: =$C$14 -> PEMS+ cold engine 2 | L47: km | M47: =IF(OR(Petrol,Diesel,CNG_Dual,E_85),IF(M27>0,100*SPECS!$B$9/M27,0),0) -> 0 | N47: =$C$14 -> PEMS+ cold engine 2 | O47: km | P47: =IF(Electric,IF(P27>0,100*SPECS!$B$37/P27,0),0) -> 0 | Q47: =$C$14 -> PEMS+ cold engine 2 | R47: km | S47: =IF(OR(CNG_Mono,CNG_Dual,Hydrogen),IF(S27>0,100*SPECS!$B$10/S27,0),0) -> 0
K48: =$C$15 -> BAB130 Motorway | L48: km | M48: =IF(OR(Petrol,Diesel,CNG_Dual,E_85),IF(M28>0,100*SPECS!$B$9/M28,0),0) -> 0 | N48: =$C$15 -> BAB130 Motorway | O48: km | P48: =IF(Electric,IF(P28>0,100*SPECS!$B$37/P28,0),0) -> 0 | Q48: =$C$15 -> BAB130 Motorway | R48: km | S48: =IF(OR(CNG_Mono,CNG_Dual,Hydrogen),IF(S28>0,100*SPECS!$B$10/S28,0),0) -> 0
K49: =$C$16 -> PEMS+ Eco / light | L49: km | M49: =IF(OR(Petrol,Diesel,CNG_Dual,E_85),IF(M29>0,100*SPECS!$B$9/M29,0),0) -> 0 | N49: =$C$16 -> PEMS+ Eco / light | O49: km | P49: =IF(Electric,IF(P29>0,100*SPECS!$B$37/P29,0),0) -> 0 | Q49: =$C$16 -> PEMS+ Eco / light | R49: km | S49: =IF(OR(CNG_Mono,CNG_Dual,Hydrogen),IF(S29>0,100*SPECS!$B$10/S29,0),0) -> 0
K50: =$C$17 -> PEMS+ Heavy load | L50: km | M50: =IF(OR(Petrol,Diesel,CNG_Dual,E_85),IF(M30>0,100*SPECS!$B$9/M30,0),0) -> 0 | N50: =$C$17 -> PEMS+ Heavy load | O50: km | P50: =IF(Electric,IF(P30>0,100*SPECS!$B$37/P30,0),0) -> 0 | Q50: =$C$17 -> PEMS+ Heavy load | R50: km | S50: =IF(OR(CNG_Mono,CNG_Dual,Hydrogen),IF(S30>0,100*SPECS!$B$10/S30,0),0) -> 0
K51: =$C$18 -> Short trip / cold start 1 | L51: km | M51: =IF(OR(Petrol,Diesel,CNG_Dual,E_85),IF(M31>0,100*SPECS!$B$9/M31,0),0) -> 0 | N51: =$C$18 -> Short trip / cold start 1 | O51: km | P51: =IF(Electric,IF(P31>0,100*SPECS!$B$37/P31,0),0) -> 0 | Q51: =$C$18 -> Short trip / cold start 1 | R51: km | S51: =IF(OR(CNG_Mono,CNG_Dual,Hydrogen),IF(S31>0,100*SPECS!$B$10/S31,0),0) -> 0
K52: Average | L52: km | M52: =AVERAGE(M43,M45,M48) -> 0 | N52: Average | O52: km | P52: =AVERAGE(P43,P45,P48) -> 0 | Q52: Average | R52: km | S52: =AVERAGE(S43,S45,S48) -> 0
K53: Warm Test (Lab) | L53: km | M53: =M45 -> 0 | N53: Warm Test (Lab) | O53: km | P53: =P45 -> 0 | Q53: Warm Test (Lab) | R53: km | S53: =S45 -> 0
K54: Highway | L54: km | M54: =M48 -> 0 | N54: Highway | O54: km | P54: =P48 -> 0 | Q54: Highway | R54: km | S54: =S48 -> 0
K55: Cold Ambient Test | L55: km | M55: =IF(G29="yes",M44,"-") ->  | N55: Cold Ambient Test | O55: km | P55: =IF(G29="yes",P44,"-") ->  | Q55: Cold Ambient Test | R55: km | S55: =IF(G29="yes",S44,"-") -> 
K56: Best Case for LCA | L56: km | M56: =MAX(M43:M46,M48:M50) -> 0 | N56: Best Case for LCA | O56: km | P56: =MAX(P43:P46,P48:P50) -> 0 | Q56: Best Case for LCA | R56: km | S56: =MAX(S43:S46,S48:S50) -> 0
K57: Worst Case for LCA | L57: km | M57: =IF('OVERALL RATING (avg)'!E14="YES",MIN(Efficiency!M43:M46,Efficiency!M48:M50),MIN(Efficiency!M43,Efficiency!M45,Efficiency!M46,Efficiency!M48)) ->  | N57: Worst Case for LCA | O57: km | P57: =IF('OVERALL RATING (avg)'!E14="YES",IF(Electric,MIN(Efficiency!P43:P46,Efficiency!P48),MIN(Efficiency!P43:P46,Efficiency!P48:P50)),MIN(Efficiency!P43,Efficiency!P45,Efficiency!P46,Efficiency!P48)) ->  | Q57: Worst Case for LCA | R57: km | S57: =IF('OVERALL RATING (avg)'!E14="YES",MIN(Efficiency!S43:S46,Efficiency!S48:S50),MIN(Efficiency!S43,Efficiency!S45,Efficiency!S46,Efficiency!S48)) -> 
B58: 2.3 | C58: Driving Resistance
C59: max points | D59: =I63 -> 0 | I59: 0
C60: tbd | I60: 0
C61: tbd | I61: 0
C62: tbe | I62: 0
B63: total | F63: =SUM(F62:F62) -> 0 | I63: =SUM(I59:I62) -> 0

Sheet Greenhouse
B2: 3.Greenhouse Gas Index | E2: Test Results | G2: Thresholds | I2: Max score | K2: Fall Back Fuel
E4: Value | F4: Points | G4: Lower | H4: Upper | K4: Value | R4: Conversion from local consumption kWh/100km to upstream GHG emissions in g/km for different energy carriers
B5: 3.1 | R5: CO2 equivalent upstream (Well-to-Tank+)
B6: =RESULTS!D4 -> WLTC+ cold engine (23°C) | C6: max points | D6: =I9 -> 10 | R6: Liquid Fuel | T6: Factor | U6: Electricity | W6: Factor | X6: Gaseous Fuel | Z6: Factor
B7: Standard | C7: N2O tailpipe | D7: mg/km | E7: =RESULTS!M4 -> 0 | F7: =IF(E7<=H7,I7,0) -> 0.5 | G7: ='LIMITS Greenhouse'!$E$14 -> 0 | H7: =IF(OR(Petrol,CNG_Mono,CNG_Dual,E_85),'LIMITS Greenhouse'!$D$6,IF(Diesel,'LIMITS Greenhouse'!$E$6,0)) -> 10 | I7: 0.5 | K7: =RESULTS!$M$26 -> 0 | R7: =IF(Petrol,"Petrol",IF(Diesel,"Diesel","-")) -> Petrol | T7: =IF(OR(Petrol,CNG_Dual),'LIMITS Greenhouse'!$D$21,IF(Diesel,'LIMITS Greenhouse'!$D$22,IF(E_85,'LIMITS Greenhouse'!$D$26,0))) -> 0.85607813 | U7: =IF(Electric,"Electricity","-") -> - | W7: =IF(Electric,'LIMITS Greenhouse'!D23,0) -> 0 | X7: =IF(CNG_Mono,"CNG",IF(CNG_Dual,"CNG",IF(Hydrogen,"Hydrogen","-"))) -> - | Z7: =IF(OR(CNG_Mono,CNG_Dual),'LIMITS Greenhouse'!$D$24,IF(Hydrogen,'LIMITS Greenhouse'!$D$25,0)) -> 0
C8: CH4 tailpipe | D8: mg/km | E8: =RESULTS!P4 -> 0 | F8: =IF(E8<=H8,I8,0) -> 0.5 | G8: ='LIMITS Greenhouse'!$E$15 -> 0 | H8: =IF(OR(Petrol,CNG_Mono,CNG_Dual,E_85),'LIMITS Greenhouse'!$D$7,IF(Diesel,'LIMITS Greenhouse'!$E$7,0)) -> 32 | I8: 0.5 | K8: =RESULTS!$P$26 -> 0 | R8: =RESULTS!D4 -> WLTC+ cold engine (23°C) | S8: g/km | T8: =Efficiency!W23*T$7 -> 0 | U8: =RESULTS!D4 -> WLTC+ cold engine (23°C) | V8: g/km | W8: =Efficiency!Z23*$W$7 -> 0 | X8: =RESULTS!D4 -> WLTC+ cold engine (23°C) | Y8: g/km | Z8: =Efficiency!AC23*Greenhouse!$Z$7 -> 0
C9: Total CO2 equivalent | D9: g/km | E9: =SUM(E10:E13) -> 0 | F9: =Sliding_Scale(E9,G9,H9,I9,0,Slide_Type) ->  | G9: ='LIMITS Greenhouse'!$E$16 -> 50 | H9: ='LIMITS Greenhouse'!D8 -> 225 | I9: 10 | K9: 0 | R9: =RESULTS!D7 -> WLTC+ CAT (-7°C) | S9: g/km | T9: =Efficiency!W24*T$7 -> 0 | U9: =RESULTS!D7 -> WLTC+ CAT (-7°C) | V9: g/km | W9: =Efficiency!Z24*$W$7 -> 0 | X9: =RESULTS!D7 -> WLTC+ CAT (-7°C) | Y9: g/km | Z9: =Efficiency!AC24*Greenhouse!$Z$7 -> 0
C10: CO2 tailpipe | D10: g/km | E10: =(IF(OR(Petrol,Diesel,CNG_Mono,CNG_Dual,E_85),MAX(RESULTS!F4,RESULTS!F26,0),0)) -> 0 | R10: =RESULTS!D8 -> WLTC+ warm engine | S10: g/km | T10: =Efficiency!W25*T$7 -> 0 | U10: =RESULTS!D8 -> WLTC+ warm engine | V10: g/km | W10: =Efficiency!Z25*$W$7 -> 0 | X10: =RESULTS!D8 -> WLTC+ warm engine | Y10: g/km | Z10: =Efficiency!AC25*Greenhouse!$Z$7 -> 0
C11: N2O CO2-eq (from tailpipe) | D11: g/km | E11: =RESULTS!M4*'LIMITS Greenhouse'!$B$14/1000 -> 0 | R11: =RESULTS!D11 -> PEMS+ cold engine 1 | S11: g/km | T11: =Efficiency!W26*T$7 -> 0 | U11: =RESULTS!D11 -> PEMS+ cold engine 1 | V11: g/km | W11: =Efficiency!Z26*$W$7 -> 0 | X11: =RESULTS!D11 -> PEMS+ cold engine 1 | Y11: g/km | Z11: =Efficiency!AC26*Greenhouse!$Z$7 -> 0
C12: CH4 CO2-eq (from tailpipe) | D12: g/km | E12: =RESULTS!P4*'LIMITS Greenhouse'!$B$15/1000 -> 0 | R12: =RESULTS!D12 -> PEMS+ cold engine 2 | S12: g/km | T12: =Efficiency!W27*T$7 -> 0 | U12: =RESULTS!D12 -> PEMS+ cold engine 2 | V12: g/km | W12: =Efficiency!Z27*$W$7 -> 0 | X12: =RESULTS!D12 -> PEMS+ cold engine 2 | Y12: g/km | Z12: =Efficiency!AC27*Greenhouse!$Z$7 -> 0
C13: CO2-eq upstream (Well-to-Tank+) | D13: g/km | E13: =T8+W8+Z8-(1-(IF(Petrol,'LIMITS Greenhouse'!D31,IF(Diesel,'LIMITS Greenhouse'!D32,IF(E_85,'LIMITS Greenhouse'!D33,1)))))*E10 -> 0 | R13: =RESULTS!D10 -> BAB130 Motorway | S13: g/km | T13: =Efficiency!W28*T$7 -> 0 | U13: =RESULTS!D10 -> BAB130 Motorway | V13: g/km | W13: =Efficiency!Z28*$W$7 -> 0 | X13: =RESULTS!D10 -> BAB130 Motorway | Y13: g/km | Z13: =Efficiency!AC28*Greenhouse!$Z$7 -> 0
B14: total | F14: =MIN(MAX(SUM(F7:F9),0),10) ->  | R14: =RESULTS!D15 -> PEMS+ Eco / light | S14: g/km | T14: =Efficiency!W29*T$7 -> 0 | U14: =RESULTS!D15 -> PEMS+ Eco / light | V14: g/km | W14: =Efficiency!Z29*$W$7 -> 0 | X14: =RESULTS!D15 -> PEMS+ Eco / light | Y14: g/km | Z14: =Efficiency!AC29*Greenhouse!$Z$7 -> 0
B15: =RESULTS!D7 -> WLTC+ CAT (-7°C) | C15: max points | D15: =I18 -> 10 | R15: =RESULTS!D16 -> PEMS+ Heavy load | S15: g/km | T15: =Efficiency!W30*T$7 -> 0 | U15: =RESULTS!D16 -> PEMS+ Heavy load | V15: g/km | W15: =Efficiency!Z30*$W$7 -> 0 | X15: =RESULTS!D16 -> PEMS+ Heavy load | Y15: g/km | Z15: =Efficiency!AC30*Greenhouse!$Z$7 -> 0
B16: Additional | C16: N2O tailpipe | D16: mg/km | E16: =RESULTS!$M$7 -> 0 | F16: =IF(E16<=H16,I16,0) -> 0.5 | G16: ='LIMITS Greenhouse'!$E$14 -> 0 | H16: =IF(OR(Petrol,CNG_Mono,CNG_Dual,E_85),'LIMITS Greenhouse'!$N$6,IF(Diesel,'LIMITS Greenhouse'!$O$6,0)) -> 16 | I16: 0.5 | R16: =RESULTS!D13 -> Short trip / cold start 1 | S16: g/km | T16: =Efficiency!W31*T$7 -> 0 | U16: =RESULTS!D13 -> Short trip / cold start 1 | V16: g/km | W16: =Efficiency!Z31*$W$7 -> 0 | X16: =RESULTS!D13 -> Short trip / cold start 1 | Y16: g/km | Z16: =Efficiency!AC31*Greenhouse!$Z$7 -> 0
C17: CH4 tailpipe | D17: mg/km | E17: =RESULTS!$P$7 -> 0 | F17: =IF(E17<=H17,I17,0) -> 0.5 | G17: ='LIMITS Greenhouse'!$E$15 -> 0 | H17: =IF(OR(Petrol,CNG_Mono,CNG_Dual,E_85),'LIMITS Greenhouse'!$N$7,IF(Diesel,'LIMITS Greenhouse'!$O$7,0)) -> 51.2 | I17: 0.5
C18: Total CO2 equivalent | D18: g/km | E18: =SUM(E19:E22) -> 0 | F18: =Sliding_Scale(E18,G18,H18,I18,0,Slide_Type) ->  | G18: ='LIMITS Greenhouse'!$E$16 -> 50 | H18: ='LIMITS Greenhouse'!N8 -> 225 | I18: 10
C19: CO2 tailpipe | D19: g/km | E19: =(IF(OR(Petrol,Diesel,CNG_Mono,CNG_Dual,E_85),MAX(RESULTS!$F7,RESULTS!$F29,0),0)) -> 0
C20: N2O CO2-eq (from tailpipe) | D20: g/km | E20: =RESULTS!M7*'LIMITS Greenhouse'!$B$14/1000 -> 0
C21: CH4 CO2-eq (from tailpipe) | D21: g/km | E21: =RESULTS!P7*'LIMITS Greenhouse'!$B$15/1000 -> 0
C22: CO2-eq upstream (Well-to-Tank+) | D22: g/km | E22: =T9+W9+Z9-(1-(IF(Petrol,'LIMITS Greenhouse'!D31,IF(Diesel,'LIMITS Greenhouse'!D32,IF(E_85,'LIMITS Greenhouse'!D33,1)))))*E19 -> 0
B23: total | F23: =IF(G93="yes",MIN(MAX(SUM(F16:F18),0),10),0) -> 
B24: =RESULTS!D8 -> WLTC+ warm engine | C24: max points | D24: =I27 -> 10
B25: Standard | C25: N2O tailpipe | D25: mg/km | E25: =RESULTS!$M$8 -> 0 | F25: =IF(E25<=H25,I25,0) -> 0.5 | G25: ='LIMITS Greenhouse'!$E$14 -> 0 | H25: =IF(OR(Petrol,CNG_Mono,CNG_Dual,E_85),'LIMITS Greenhouse'!$D$6,IF(Diesel,'LIMITS Greenhouse'!$E$6,0)) -> 10 | I25: 0.5
C26: CH4 tailpipe | D26: mg/km | E26: =RESULTS!$P$8 -> 0 | F26: =IF(E26<=H26,I26,0) -> 0.5 | G26: ='LIMITS Greenhouse'!$E$15 -> 0 | H26: =IF(OR(Petrol,CNG_Mono,CNG_Dual,E_85),'LIMITS Greenhouse'!$D$7,IF(Diesel,'LIMITS Greenhouse'!$E$7,0)) -> 32 | I26: 0.5
C27: Total CO2 equivalent | D27: g/km | E27: =SUM(E28:E31) -> 0 | F27: =Sliding_Scale(E27,G27,H27,I27,0,Slide_Type) ->  | G27: ='LIMITS Greenhouse'!$E$16 -> 50 | H27: ='LIMITS Greenhouse'!D8 -> 225 | I27: 10
C28: CO2 tailpipe | D28: g/km | E28: =(IF(OR(Petrol,Diesel,CNG_Mono,CNG_Dual,E_85),MAX(RESULTS!$F8,RESULTS!$F30,0),0)) -> 0
C29: N2O CO2-eq (from tailpipe) | D29: g/km | E29: =RESULTS!M8*'LIMITS Greenhouse'!$B$14/1000 -> 0
C30: CH4 CO2-eq (from tailpipe) | D30: g/km | E30: =RESULTS!P8*'LIMITS Greenhouse'!$B$15/1000 -> 0
C31: CO2-eq upstream (Well-to-Tank+) | D31: g/km | E31: =T10+W10+Z10-(1-(IF(Petrol,'LIMITS Greenhouse'!D31,IF(Diesel,'LIMITS Greenhouse'!D32,IF(E_85,'LIMITS Greenhouse'!D33,1)))))*E28 -> 0
B32: total | F32: =MIN(MAX(SUM(F25:F27),0),10) -> 
B33: 3.2
B34: =RESULTS!D11 -> PEMS+ cold engine 1 | C34: max points | D34: =SUM(I35:I37) -> 0
C35: N2O | D35: mg/km | E35: =RESULTS!$M$11 -> n.a. | F35: =IF(OR(Hydrogen,Electric),I35,IF(E35=0,Sliding_Scale(E35,G35,H35,I35,0,Slide_Type),IF(K35/E35>='LIMITS Efficiency'!$E$27,(1-'LIMITS Efficiency'!$E$28)*Sliding_Scale(E35,G35,H35,I35,0,Slide_Type),Sliding_Scale(E35,G35,H35,I35,0,Slide_Type)))) ->  | G35: ='LIMITS Greenhouse'!$E$14 -> 0 | H35: =IF(OR(Petrol,CNG_Mono,CNG_Dual),'LIMITS Greenhouse'!$I$6,IF(Diesel,'LIMITS Greenhouse'!$J$6,0)) -> 15 | I35: 0 | K35: =RESULTS!$M$33 -> 0
C36: CH4 | D36: mg/km | E36: =RESULTS!$P11 -> n.a. | F36: =IF(OR(Hydrogen,Electric),I36,IF(E36=0,Sliding_Scale(E36,G36,H36,I36,0,Slide_Type),IF(K36/E36>='LIMITS Efficiency'!$E$27,(1-'LIMITS Efficiency'!$E$28)*Sliding_Scale(E36,G36,H36,I36,0,Slide_Type),Sliding_Scale(E36,G36,H36,I36,0,Slide_Type)))) ->  | G36: ='LIMITS Greenhouse'!$E$15 -> 0 | H36: =IF(OR(Petrol,CNG_Mono,CNG_Dual),'LIMITS Greenhouse'!$I$7,IF(Diesel,'LIMITS Greenhouse'!$J$7,0)) -> 48 | I36: 0 | K36: =RESULTS!$P$33 -> 0
C37: Total CO2 | D37: g/km | E37: =E38+E41 -> 0 | F37: =IF(OR(Hydrogen,Electric),I37,IF(E37=0,Sliding_Scale(E37,G37,H37,I37,0,Slide_Type),IF(K37/E37>='LIMITS Efficiency'!$E$27,(1-'LIMITS Efficiency'!$E$28)*Sliding_Scale(E37,G37,H37,I37,0,Slide_Type),Sliding_Scale(E37,G37,H37,I37,0,Slide_Type)))) ->  | G37: ='LIMITS Greenhouse'!$E$16 -> 50 | H37: =IF(OR(Petrol,CNG_Mono,CNG_Dual),'LIMITS Greenhouse'!$I$8,IF(Diesel,'LIMITS Greenhouse'!$J$8,0)) -> 225 | I37: 0 | K37: =RESULTS!$E$33+$S$36 -> 0
C38: CO2 tailpipe | D38: g/km | E38: =(IF(OR(Petrol,Diesel,CNG_Mono,CNG_Dual,E_85),MAX(RESULTS!$E11,RESULTS!$E33,0),0)) -> 0
C39: CO2 eq N2O | D39: g/km
C40: CO2 eq CH4 | D40: g/km
C41: CO2-eq upstream | D41: g/km
F42: =IF(OR(E35:E37>'LIMITS Greenhouse'!$K$6:$K$8,K35:K37>'LIMITS Greenhouse'!$K$6:$K$8),0,MAX(SUM(F35:F37),0)) -> 0
B43: =RESULTS!D12 -> PEMS+ cold engine 2 | C43: max points | D43: =SUM(I44:I46) -> 0
C44: N2O | D44: mg/km | E44: =RESULTS!$M$12 -> n.a. | F44: =IF(OR(Hydrogen,Electric),I44,IF(E44=0,Sliding_Scale(E44,G44,H44,I44,0,Slide_Type),IF(K44/E44>='LIMITS Efficiency'!$E$27,(1-'LIMITS Efficiency'!$E$28)*Sliding_Scale(E44,G44,H44,I44,0,Slide_Type),Sliding_Scale(E44,G44,H44,I44,0,Slide_Type)))) ->  | G44: ='LIMITS Greenhouse'!$E$14 -> 0 | H44: =IF(OR(Petrol,CNG_Mono,CNG_Dual),'LIMITS Greenhouse'!$I$6,IF(Diesel,'LIMITS Greenhouse'!$J$6,0)) -> 15 | I44: 0
C45: CH4 | D45: mg/km | E45: =RESULTS!$P12 -> n.a. | F45: =IF(OR(Hydrogen,Electric),I45,IF(E45=0,Sliding_Scale(E45,G45,H45,I45,0,Slide_Type),IF(K45/E45>='LIMITS Efficiency'!$E$27,(1-'LIMITS Efficiency'!$E$28)*Sliding_Scale(E45,G45,H45,I45,0,Slide_Type),Sliding_Scale(E45,G45,H45,I45,0,Slide_Type)))) ->  | G45: ='LIMITS Greenhouse'!$E$15 -> 0 | H45: =IF(OR(Petrol,CNG_Mono,CNG_Dual),'LIMITS Greenhouse'!$I$7,IF(Diesel,'LIMITS Greenhouse'!$J$7,0)) -> 48 | I45: 0
C46: Total CO2 | D46: g/km | E46: =E47+E50 -> 0 | F46: =IF(OR(Hydrogen,Electric),I46,IF(E46=0,Sliding_Scale(E46,G46,H46,I46,0,Slide_Type),IF(K46/E46>='LIMITS Efficiency'!$E$27,(1-'LIMITS Efficiency'!$E$28)*Sliding_Scale(E46,G46,H46,I46,0,Slide_Type),Sliding_Scale(E46,G46,H46,I46,0,Slide_Type)))) ->  | G46: ='LIMITS Greenhouse'!$E$16 -> 50 | H46: =IF(OR(Petrol,CNG_Mono,CNG_Dual),'LIMITS Greenhouse'!$I$8,IF(Diesel,'LIMITS Greenhouse'!$J$8,0)) -> 225 | I46: 0
C47: CO2 tailpipe | D47: g/km | E47: =(IF(OR(Petrol,Diesel,CNG_Mono,CNG_Dual,E_85),MAX(RESULTS!$E12,RESULTS!$E34,0),0)) -> 0
C48: CO2 eq N2O | D48: g/km
C49: CO2 eq CH4 | D49: g/km
C50: CO2-eq upstream | D50: g/km
F51: =IF(OR(E44:E46>'LIMITS Greenhouse'!$K$6:$K$8,K44:K46>'LIMITS Greenhouse'!$K$6:$K$8),0,MAX(SUM(F44:F46),0)) -> 0
B53: 3.3
B54: =RESULTS!D10 -> BAB130 Motorway | C54: max points | D54: =I57 -> 10
B55: Standard | C55: N2O tailpipe | D55: mg/km | E55: =RESULTS!$M$10 -> 0 | F55: =IF(E55<=H55,I55,0) -> 0.5 | G55: ='LIMITS Greenhouse'!$E$14 -> 0 | H55: =IF(OR(Petrol,CNG_Mono,CNG_Dual,E_85),'LIMITS Greenhouse'!$D$6,IF(Diesel,'LIMITS Greenhouse'!$E$6,0)) -> 10 | I55: 0.5 | K55: =RESULTS!$M$32 -> 0
C56: CH4 tailpipe | D56: mg/km | E56: =RESULTS!$P$10 -> 0 | F56: =IF(E56<=H56,I56,0) -> 0.5 | G56: ='LIMITS Greenhouse'!$E$15 -> 0 | H56: =IF(OR(Petrol,CNG_Mono,CNG_Dual,E_85),'LIMITS Greenhouse'!$D$7,IF(Diesel,'LIMITS Greenhouse'!$E$7,0)) -> 32 | I56: 0.5 | K56: =RESULTS!$P$32 -> 0
C57: Total CO2 equivalent | D57: g/km | E57: =SUM(E58:E61) -> 0 | F57: =Sliding_Scale(E57,G57,H57,I57,0,Slide_Type) ->  | G57: ='LIMITS Greenhouse'!$E$16 -> 50 | H57: ='LIMITS Greenhouse'!D8 -> 225 | I57: 10 | K57: =RESULTS!$E$32+$S$35 -> 0
C58: CO2 tailpipe | D58: g/km | E58: =(IF(OR(Petrol,Diesel,CNG_Mono,CNG_Dual,E_85),MAX(RESULTS!$F10,RESULTS!$F32,0),0)) -> 0
C59: N2O CO2-eq (from tailpipe) | D59: g/km | E59: =RESULTS!M10*'LIMITS Greenhouse'!$B$14/1000 -> 0
C60: CH4 CO2-eq (from tailpipe) | D60: g/km | E60: =RESULTS!P10*'LIMITS Greenhouse'!$B$15/1000 -> 0
C61: CO2-eq upstream (Well-to-Tank+) | D61: g/km | E61: =T13+W13+Z13-(1-(IF(Petrol,'LIMITS Greenhouse'!D31,IF(Diesel,'LIMITS Greenhouse'!D32,IF(E_85,'LIMITS Greenhouse'!D33,1)))))*E58 -> 0
F62: =MIN(MAX(SUM(F55:F57),0),10) -> 
B63: =RESULTS!D15 -> PEMS+ Eco / light | C63: max points | D63: =SUM(I64:I66) -> 0
C64: N2O | D64: mg/km | E64: =RESULTS!$M$15 -> n.a. | F64: =IF(OR(Hydrogen,Electric),I64,IF(E64=0,Sliding_Scale(E64,G64,H64,I64,0,Slide_Type),IF(K64/E64>='LIMITS Efficiency'!$E$27,(1-'LIMITS Efficiency'!$E$28)*Sliding_Scale(E64,G64,H64,I64,0,Slide_Type),Sliding_Scale(E64,G64,H64,I64,0,Slide_Type)))) ->  | G64: ='LIMITS Greenhouse'!$E$14 -> 0 | H64: =IF(OR(Petrol,CNG_Mono,CNG_Dual),'LIMITS Greenhouse'!$I$6,IF(Diesel,'LIMITS Greenhouse'!$J$6,0)) -> 15 | I64: 0
C65: CH4 | D65: mg/km | E65: =RESULTS!$P$15 -> n.a. | F65: =IF(OR(Hydrogen,Electric),I65,IF(E65=0,Sliding_Scale(E65,G65,H65,I65,0,Slide_Type),IF(K65/E65>='LIMITS Efficiency'!$E$27,(1-'LIMITS Efficiency'!$E$28)*Sliding_Scale(E65,G65,H65,I65,0,Slide_Type),Sliding_Scale(E65,G65,H65,I65,0,Slide_Type)))) ->  | G65: ='LIMITS Greenhouse'!$E$15 -> 0 | H65: =IF(OR(Petrol,CNG_Mono,CNG_Dual),'LIMITS Greenhouse'!$I$7,IF(Diesel,'LIMITS Greenhouse'!$J$7,0)) -> 48 | I65: 0
C66: Total CO2 | D66: g/km | E66: =E67+E70 -> 0 | F66: =IF(OR(Hydrogen,Electric),I66,IF(E66=0,Sliding_Scale(E66,G66,H66,I66,0,Slide_Type),IF(K66/E66>='LIMITS Efficiency'!$E$27,(1-'LIMITS Efficiency'!$E$28)*Sliding_Scale(E66,G66,H66,I66,0,Slide_Type),Sliding_Scale(E66,G66,H66,I66,0,Slide_Type)))) ->  | G66: ='LIMITS Greenhouse'!$E$16 -> 50 | H66: =IF(OR(Petrol,CNG_Mono,CNG_Dual),'LIMITS Greenhouse'!$I$8,IF(Diesel,'LIMITS Greenhouse'!$J$8,0)) -> 225 | I66: 0
C67: CO2 tailpipe | D67: g/km | E67: =(IF(OR(Petrol,Diesel,CNG_Mono,CNG_Dual,E_85),MAX(RESULTS!$E15,RESULTS!$E37,0),0)) -> 0
C68: CO2 eq N2O | D68: g/km
C69: CO2 eq CH4 | D69: g/km
C70: CO2-eq upstream | D70: g/km
F71: =IF(OR(E64:E66>'LIMITS Greenhouse'!$K$6:$K$8,K64:K66>'LIMITS Greenhouse'!$K$6:$K$8),0,MAX(SUM(F64:F66),0)) -> 0
B72: =RESULTS!D16 -> PEMS+ Heavy load | C72: max points | D72: =SUM(I73:I79) -> 0
C73: N2O | D73: mg/km | E73: =RESULTS!$M$16 -> n.a. | F73: =IF(OR(Hydrogen,Electric),I73,IF(E73=0,Sliding_Scale(E73,G73,H73,I73,0,Slide_Type),IF(K73/E73>='LIMITS Efficiency'!$E$27,(1-'LIMITS Efficiency'!$E$28)*Sliding_Scale(E73,G73,H73,I73,0,Slide_Type),Sliding_Scale(E73,G73,H73,I73,0,Slide_Type)))) ->  | G73: ='LIMITS Greenhouse'!$E$14 -> 0 | H73: =IF(OR(Petrol,CNG_Mono,CNG_Dual),'LIMITS Greenhouse'!$I$6,IF(Diesel,'LIMITS Greenhouse'!$J$6,0)) -> 15 | I73: 0
C74: CH4 | D74: mg/km | E74: =RESULTS!$P$16 -> n.a. | F74: =IF(OR(Hydrogen,Electric),I74,IF(E74=0,Sliding_Scale(E74,G74,H74,I74,0,Slide_Type),IF(K74/E74>='LIMITS Efficiency'!$E$27,(1-'LIMITS Efficiency'!$E$28)*Sliding_Scale(E74,G74,H74,I74,0,Slide_Type),Sliding_Scale(E74,G74,H74,I74,0,Slide_Type)))) ->  | G74: ='LIMITS Greenhouse'!$E$15 -> 0 | H74: =IF(OR(Petrol,CNG_Mono,CNG_Dual),'LIMITS Greenhouse'!$I$7,IF(Diesel,'LIMITS Greenhouse'!$J$7,0)) -> 48 | I74: 0
C75: CO2 | D75: g/km | E75: =E76+E79 -> 0 | F75: =IF(OR(Hydrogen,Electric),I79,IF(E79=0,Sliding_Scale(E79,G75,H75,I79,0,Slide_Type),IF(K79/E79>='LIMITS Efficiency'!$E$27,(1-'LIMITS Efficiency'!$E$28)*Sliding_Scale(E79,G75,H75,I79,0,Slide_Type),Sliding_Scale(E79,G75,H75,I79,0,Slide_Type)))) ->  | G75: ='LIMITS Greenhouse'!$E$16 -> 50 | H75: =IF(OR(Petrol,CNG_Mono,CNG_Dual),'LIMITS Greenhouse'!$I$8,IF(Diesel,'LIMITS Greenhouse'!$J$8,0)) -> 225 | I75: 0
C76: CO2 tailpipe | D76: g/km | E76: =(IF(OR(Petrol,Diesel,CNG_Mono,CNG_Dual,E_85),MAX(RESULTS!$E16,RESULTS!$E38,0),0)) -> 0
C77: CO2 eq N2O | D77: g/km
C78: CO2 eq CH4 | D78: g/km
C79: CO2-eq upstream | D79: g/km
F80: =IF(OR(E73:E75>'LIMITS Greenhouse'!$K$6:$K$8,K73:K75>'LIMITS Greenhouse'!$K$6:$K$8),0,MAX(SUM(F73:F75),0)) -> 0
B81: =RESULTS!D13 -> Short trip / cold start 1 | C81: max points | D81: =SUM(I82:I88) -> 0
C82: N2O | D82: mg/km | E82: =RESULTS!$M$13 -> n.a. | F82: =IF(OR(Hydrogen,Electric),I82,IF(E82=0,Sliding_Scale(E82,G82,H82,I82,0,Slide_Type),IF(K82/E82>='LIMITS Efficiency'!$E$27,(1-'LIMITS Efficiency'!$E$28)*Sliding_Scale(E82,G82,H82,I82,0,Slide_Type),Sliding_Scale(E82,G82,H82,I82,0,Slide_Type)))) ->  | G82: ='LIMITS Greenhouse'!$E$14 -> 0 | H82: =IF(OR(Petrol,CNG_Mono,CNG_Dual),'LIMITS Greenhouse'!$I$6,IF(Diesel,'LIMITS Greenhouse'!$J$6,0)) -> 15 | I82: 0
C83: CH4 | D83: mg/km | E83: =RESULTS!$P$13 -> n.a. | F83: =IF(OR(Hydrogen,Electric),I83,IF(E83=0,Sliding_Scale(E83,G83,H83,I83,0,Slide_Type),IF(K83/E83>='LIMITS Efficiency'!$E$27,(1-'LIMITS Efficiency'!$E$28)*Sliding_Scale(E83,G83,H83,I83,0,Slide_Type),Sliding_Scale(E83,G83,H83,I83,0,Slide_Type)))) ->  | G83: ='LIMITS Greenhouse'!$E$15 -> 0 | H83: =IF(OR(Petrol,CNG_Mono,CNG_Dual),'LIMITS Greenhouse'!$I$7,IF(Diesel,'LIMITS Greenhouse'!$J$7,0)) -> 48 | I83: 0
C84: CO2 | D84: g/km | E84: =E85+E88 -> 0 | F84: =IF(OR(Hydrogen,Electric),I88,IF(E88=0,Sliding_Scale(E88,G84,H84,I88,0,Slide_Type),IF(K88/E88>='LIMITS Efficiency'!$E$27,(1-'LIMITS Efficiency'!$E$28)*Sliding_Scale(E88,G84,H84,I88,0,Slide_Type),Sliding_Scale(E88,G84,H84,I88,0,Slide_Type)))) ->  | G84: ='LIMITS Greenhouse'!$E$16 -> 50 | H84: =IF(OR(Petrol,CNG_Mono,CNG_Dual),'LIMITS Greenhouse'!$I$8,IF(Diesel,'LIMITS Greenhouse'!$J$8,0)) -> 225 | I84: 0
C85: CO2 tailpipe | D85: g/km | E85: =(IF(OR(Petrol,Diesel,CNG_Mono,CNG_Dual,E_85),MAX(RESULTS!E13,RESULTS!$E35,0),0)) -> 0
C86: CO2 eq N2O | D86: g/km
C87: CO2 eq CH4 | D87: g/km
C88: CO2-eq upstream | D88: g/km
F89: =IF(OR(E82:E84>'LIMITS Greenhouse'!$K$6:$K$8,K82:K84>'LIMITS Greenhouse'!$K$6:$K$8),0,MAX(SUM(F82:F84),0)) -> 0
B91: SUMMARY | D91: max points | E91: scored points | F91: sub score | G91: Stage 2?
B93: Standard Testing | D93: =D6+D54+D24 -> 30 | E93: =F62+F14+F32 ->  | F93: =ROUNDDOWN(10*(E93/D93),1) ->  | G93: =IF(AND(AVERAGE(F93,Efficiency!F29,'Clean Air'!E102)>='LIMITS Clean Air'!$P$20,MIN(F93,Efficiency!F29,'Clean Air'!E102)>='LIMITS Clean Air'!$P$24),"YES","NO") -> 
B94: Additional Robustness Testing | D94: =D15 -> 10 | E94: =IF(G93="YES",F23,0) ->  | F94: =ROUNDDOWN(10*(E94/D94),1) -> 
B95: TOTAL | D95: =SUM(D93,D94) -> 40 | E95: =SUM(E93,E94) -> 
B97: TOTAL SCORE GREENHOUSE GAS | D97: (0-10pts) | F97: =IF('OVERALL RATING (avg)'!E14="YES",ROUNDDOWN(10*E95/D95,1),ROUNDDOWN(10*E93/D93,1)) -> 

Sheet LIMITS Clean Air
B2: Clean Air (Pollutants)
C4: Upper Thresholds (labtests w/o WLTC+ CAT (-7°C)) | E4: gross excess | G4: Upper Thresholds (PEMS+ tests) | I4: gross excess | K4: Upper Thresholds WLTC+ CAT (-7°C) (extended bouderies) | M4: gross excess | O4: Congestion Simulation Upper Thresholds
P5: Max | Q5: Average
C6: NMHC | D6: =90-32 -> 58 | E6: =1.5*D6 -> 87 | G6: NMHC | H6: =D6*$I$14 -> 76.56 | I6: =1.5*H6 -> 114.84 | K6: NMHC | L6: =D6*$M$14 -> 76.56 | M6: =1.5*L6 -> 114.84 | P6: mg/s | Q6: mg/s
C7: NOx | D7: 60 | E7: =1.5*D7 -> 90 | G7: NOx | H7: 79.2 | I7: =1.5*H7 -> 118.8 | K7: NOx | L7: 79.2 | M7: =1.5*L7 -> 118.8 | O7: NOx | P7: 1 | Q7: 0.5
C8: NO2 | D8: 20 | E8: =1.5*D8 -> 30 | G8: NO2 | H8: 26.4 | I8: 39.6 | K8: NO2 | L8: 26.4 | M8: 39.6
C9: NH3 | D9: 10 | E9: 15 | G9: NH3 | H9: 13.2 | I9: 19.8 | K9: NH3 | L9: 13.2 | M9: 19.8 | O9: Eligible for Stage 2
C10: CO | D10: 500 | E10: 750 | G10: CO | H10: 660 | I10: 990 | K10: CO | L10: 660 | M10: 990 | O10: score | P10: ='Clean Air'!E102 ->  | Q10: =IF(P10/P11>=1,"YES","NO") -> 
C11: PM | D11: 4.5 | E11: 6.75 | G11: PM | H11: 5.94 | I11: 8.91 | K11: PM | L11: 5.94 | M11: 8.91 | O11: threshold | P11: =P21 -> 5 | Q11: =P10/P11 -> 
C12: PN23 | D12: 600000000000 | E12: 6000000000000 | G12: PN23 | H12: 792000000000 | I12: 1188000000000 | K12: PN23 | L12: 792000000000 | M12: 1188000000000
C13: log10 (PN23) = | D13: =LOG10(D12) -> 11.77815125 | E13: =LOG10(E12) -> 12.77815125 | G13: log10 (PN23) = | H13: =LOG10(H12) -> 11.89872518 | I13: =LOG10(I12) -> 12.07481644 | K13: log10 (PN23) = | L13: =LOG10(L12) -> 11.89872518 | M13: =LOG10(M12) -> 12.07481644
H14: CF: | I14: 1.32 | L14: CF: | M14: 1.32
K15: extended bounderies applicable to:
K16: WLTC+ CAT (-7°C)
C18: Lower Thresholds | G18: Lower Thresholds | K18: Lower Thresholds | O18: Stage 2 Index Requierments
C20: NMHC | D20: 0.5 | G20: NMHC | H20: =D20 -> 0.5 | K20: NMHC | L20: =H20 -> 0.5 | O20: Average | P20: 5
C21: NOx | D21: 0.5 | G21: NOx | H21: 0.5 | K21: NOx | L21: 0.5 | O21: CA | P21: 5
C22: NO2 | D22: 0 | G22: NO2 | H22: 0 | K22: NO2 | L22: 0 | O22: EE | P22: 5
C23: NH3 | D23: 0.1 | G23: NH3 | H23: 0.1 | K23: NH3 | L23: 0.1 | O23: GHG | P23: 5
C24: CO | D24: 5 | G24: CO | H24: 5 | K24: CO | L24: 5 | O24: Min. | P24: 3.5
C25: PM | D25: 0 | G25: PM | H25: 0 | K25: PM | L25: 0
C26: PN23 | D26: 100000000 | G26: PN23 | H26: 100000000 | K26: PN23 | L26: 100000000
C27: log10 (PN23) = | D27: =LOG10(D26) -> 8 | G27: log10 (PN23) = | H27: =LOG10(H26) -> 8 | K27: log10 (PN23) = | L27: =LOG10(L26) -> 8
F102: =SI(ET(MOYENNE(E102,Efficiency!F29,Greenhouse!F93)>='LIMITS Clean Air'!P19,(MIN(Greenhouse!F93,Efficiency!F29,'Clean Air'!E102)>='LIMITS Clean 'LIMITS Clean Air'!P19Air'!P23)),"YES","NO")

Sheet LIMITS Efficiency
B2: Energy Efficiency
B4: Energy Consumption Thresholds
B5: Thresholds: | E5: Lower | F5: Upper
C6: =RESULTS!D4 -> WLTC+ cold engine (23°C) | D6: kWh/100km | E6: 20 | F6: 90
C7: =RESULTS!D7 -> WLTC+ CAT (-7°C) | D7: kWh/100km | E7: 20 | F7: 90
C8: =RESULTS!D8 -> WLTC+ warm engine | D8: kWh/100km | E8: 20 | F8: 90
C9: =RESULTS!D10 -> BAB130 Motorway | D9: kWh/100km | E9: 20 | F9: 90
C10: =RESULTS!D11 -> PEMS+ cold engine 1 | D10: kWh/100km | E10: 20 | F10: 90
C11: =RESULTS!D13 -> Short trip / cold start 1 | D11: kWh/100km | E11: 20 | F11: 90
C12: =RESULTS!D15 -> PEMS+ Eco / light | D12: kWh/100km | E12: 20 | F12: 90
C13: =RESULTS!D16 -> PEMS+ Heavy load | D13: kWh/100km | E13: 20 | F13: 90
B16: Fuel / Energy Consumption
B17: Multiplication liquid fuel (l/100km) or gaseous fuel (kg/100km) --> energy (kWh/100km)
B18: Energy Carrier | C18: Factor (default) | E18: Override
B19: Petrol E10 | C19: =IF(H19>0,H19,E19) -> 8.64 | E19: 8.64
B20: Diesel B7 | C20: =IF(H20>0,H20,E20) -> 9.79 | E20: 9.79
B21: CNG | C21: =IF(H21>0,H21,E21) -> 13.8925 | E21: 13.8925
B22: Electric | C22: 1 | E22: 1
B23: Hydrogene | C23: 33.61 | E23: 33.61
B24: Etahnol E85 | C24: 6.41 | E24: 6.41
B26: Modifer for multifuel ICE vehicles
B27: dominant/fall back ratio | E27: 1.5
B28: score modifier (%) | E28: =IF(CNG_Mono,0.1,IF(CNG_Dual,0.5,0)) -> 0
C31: Eligible for Stage 2
C32: score | D32: =Efficiency!F29 ->  | E32: =IF(D32/D33>=1,"YES","NO") -> 
C33: threshold | D33: ='LIMITS Clean Air'!P22 -> 5 | E33: =D32/D33 -> 
C35: Range deviation BEVs
D36: pen.points | E36: %
C37: tolerance | D37: 0 | E37: 1
C38: max @ ...% | D38: 5 | E38: 0.5

Sheet LIMITS Greenhouse
B2: Greenhouse gases
B4: GWP | C4: Upper Thresholds (labtests w/o WLTC+ CAT (-7°C)) | F4: gross excess | H4: Upper Thresholds (PEMS+ tests) | K4: gross excess | M4: Upper Thresholds (WLTC+ CAT (-7°C)) | P4: gross excess
B6: 298 | C6: N2O | D6: 10 | E6: 10 | F6: =IF(OR(Petrol,CNG_Mono,CNG_Dual),1.5*D6,IF(Diesel,1.5*E6,"n.a.")) -> 15 | H6: N2O | I6: =D6*$K$10 -> 15 | J6: =E6*$K$10 -> 15 | K6: =IF(Petrol,1.5*I6,IF(Diesel,1.5*J6,"n.a.")) -> 22.5 | M6: N2O | N6: =D6*$P$10 -> 16 | O6: =E6*$P$10 -> 16 | P6: =IF(Petrol,1.5*N6,IF(Diesel,1.5*O6,"n.a.")) -> 24
B7: 34 | C7: CH4 | D7: 32 | E7: 32 | F7: =IF(OR(Petrol,CNG_Mono,CNG_Dual),1.5*D7,IF(Diesel,1.5*E7,"n.a.")) -> 48 | H7: CH4 | I7: 48 | J7: =E7*$K$10 -> 48 | K7: =IF(Petrol,1.5*I7,IF(Diesel,1.5*J7,"n.a.")) -> 72 | M7: CH4 | N7: =D7*$P$10 -> 51.2 | O7: =E7*$P$10 -> 51.2 | P7: =IF(Petrol,1.5*N7,IF(Diesel,1.5*O7,"n.a.")) -> 76.8
B8: 1 | C8: CO2 | D8: 225 | E8: 225 | F8: =IF(OR(Petrol,CNG_Mono,CNG_Dual),1.5*D8,IF(Diesel,1.5*E8,"n.a.")) -> 337.5 | H8: CO2 | I8: =D8 -> 225 | J8: =E8 -> 225 | K8: =IF(Petrol,1.5*I8,IF(Diesel,1.5*J8,"n.a.")) -> 337.5 | M8: CO2 | N8: =D8 -> 225 | O8: =E8 -> 225 | P8: =IF(Petrol,1.5*N8,IF(Diesel,1.5*O8,"n.a.")) -> 337.5
J10: CF: | K10: 1.5 | O10: CF: | P10: 1.6
B12: GWP | C12: Lower Thresholds | I12: Lower Thresholds | N12: Lower Thresholds
B14: 298 | C14: N2O | E14: 0 | I14: N2O | K14: =E14 -> 0 | N14: N2O | P14: =K14 -> 0
B15: 34 | C15: CH4 | E15: 0 | I15: CH4 | K15: =E15 -> 0 | N15: CH4 | P15: =K15 -> 0
B16: 1 | C16: CO2 | E16: 50 | I16: CO2 | J16: NO2 | K16: =E16 -> 50 | N16: CO2 | O16: NO2 | P16: =K16 -> 50
B19: CO2-eq upstream factor | G19: Eligible for Stage 2
B20: kWh/100km > gCO2-eq./km | G20: score | H20: =Greenhouse!F93 ->  | I20: =IF(H20/H21>=1,"YES","NO") -> 
B21: Petrol E10 | D21: 0.85607813 | G21: threshold | H21: ='LIMITS Clean Air'!P23 -> 5 | I21: =H20/H21 -> 
B22: Diesel B7 | D22: 0.6684244419
B23: Electricity EU27+UK | C23: NO2 | D23: 2.820222876
B24: CNG | D24: 0.4234050095
B25: Hydrogen (nat. gas) | D25: 3.635149039
B26: Ethanol E85 | D26: 1.753
B28: Upstream CO2 reduction factor due to neutral bio-fuel share combustion carbon balance
B30: -
B31: Petrol E10 | D31: 0.931
B32: Diesel B7 | D32: 0.935
B33: Ethanol E85 | D33: 0.214

Sheet WEBSITE SUMMARY (hidden)
A1: Car Model | B1: =CONCATENATE(SPECS!B1," ",SPECS!B2) ->  | D1: Type
A2: Type | B2: =SPECS!B3 -> 0
A3: Release Date
A4: Year of Test
A5: Start of Production | B5: =IF(SPECS!B34="","",SPECS!B34) ->  | C5: New 2301 | D5: empty or date: DD/MM/YYYY | E5: currently not in use
A6: End of Production | B6: =IF(SPECS!B35<=SPECS!B34,"",IF(SPECS!B35="","",SPECS!B35)) ->  | C6: New 2301 | D6: empty or date: DD/MM/YYYY | E6: currently not in use
A7: Engine | B7: =SPECS!B6 -> Petrol
A8: Gearbox | B8: =SPECS!B23 -> 0
A9: Number of Doors | B9: =SPECS!B25 -> 0 | C9: New 2301 | D9: Number - no decimals
A10: Emissions Class | B10: =SPECS!B27 -> 0
A11: Stars | B11: =Stars -> 
A12: Test # | B12: =SPECS!B5 -> 0
A13: Engine Size 2 | B13: =SPECS!B29 -> 0
A14: Mass | B14: =SPECS!B33 -> 0
A15: Clean Air Index | B15: ='OVERALL RATING (avg)'!K23 -> 
A16: Clean Air Lab Tests - Overall Performance | B16: =IF('OVERALL RATING (avg)'!E14="YES",(Colour_Local(SUM('Clean Air'!F14,'Clean Air'!F23,'Clean Air'!F32,'Clean Air'!F70),SUM('Clean Air'!D6,'Clean Air'!D15,'Clean Air'!D24,'Clean Air'!D62))),(Colour_Local(SUM('Clean Air'!F14,'Clean Air'!F23,'Clean Air'!F32),SUM('Clean Air'!D6,'Clean Air'!D15,'Clean Air'!D24)))) -> 
A17: CA Cold Test - Score | B17: =ROUND('Clean Air'!F23,1) -> 
A18: CA Cold Test - NMHC Colour | B18: =Colour_Local('Clean Air'!F16,'Clean Air'!I16) ->  | C18: previously HC > to be renamed in dashboard
A19: CA Cold Test - NOx Colour | B19: =Colour_Local('Clean Air'!F17,'Clean Air'!I17) -> 
A20: CA Cold Test - NO2 Colour | B20: Not Used | D20: Brown - Green - Orange - Red - Yellow
A21: CA Cold Test - NH3 Colour | B21: =Colour_Local('Clean Air'!F19,'Clean Air'!I19) ->  | D21: Brown - Green - Orange - Red - Yellow
A22: CA Cold Test - CO Colour | B22: =Colour_Local('Clean Air'!F20,'Clean Air'!I20) -> 
A23: CA Cold Test - PN Colour | B23: =Colour_Local('Clean Air'!F22,'Clean Air'!I22) -> 
A24: CA Warm Test - Score | B24: =ROUND('Clean Air'!F14,1) -> 
A25: CA Warm Test - NMHC Colour | B25: =Colour_Local('Clean Air'!F7,'Clean Air'!I7) ->  | C25: previously HC > to be renamed in dashboard
A26: CA Warm Test - NOx Colour | B26: =Colour_Local('Clean Air'!F8,'Clean Air'!I8) -> 
A27: CA Warm Test - NO2 Colour | B27: Not Used | D27: Brown - Green - Orange - Red - Yellow
A28: CA Warm Test - NH3 Colour | B28: =Colour_Local('Clean Air'!F10,'Clean Air'!I10) ->  | D28: Brown - Green - Orange - Red - Yellow
A29: CA Warm Test - CO Colour | B29: =Colour_Local('Clean Air'!F11,'Clean Air'!I11) -> 
A30: CA Warm Test - PN Colour | B30: =Colour_Local('Clean Air'!F13,'Clean Air'!I13) -> 
A31: CA Eco Test - Score | C31: only 2019
A32: CA Eco Test - HC Colour | C32: only 2019
A33: CA Eco Test - NOx Colour | C33: only 2019
A34: CA Eco Test - CO Colour | C34: only 2019
A35: CA Eco Test - PN Colour | C35: only 2019
A36: CA Sport Test - Score | C36: only 2019
A37: CA Sport Test - HC Colour | C37: only 2019
A38: CA Sport Test - NOx Colour | C38: only 2019
A39: CA Sport Test - CO Colour | C39: only 2019
A40: CA Sport Test - PN Colour | C40: only 2019
A41: CA Cold Ambient Test - Score | B41: =ROUND('Clean Air'!F70,1) ->  | D41: Number - 1 decimal place
A42: CA Cold Ambient Test - NMHC Colour | B42: =Colour_Local('Clean Air'!F63,'Clean Air'!I63) ->  | D42: Brown - Green - Orange - Red - Yellow
A43: CA Cold Ambient Test - NOx Colour | B43: =Colour_Local('Clean Air'!F64,'Clean Air'!I64) ->  | D43: Brown - Green - Orange - Red - Yellow
A44: CA Cold Ambient Test - NO2 Colour | B44: Not Used | D44: Brown - Green - Orange - Red - Yellow
A45: CA Cold Ambient Test - NH3 Colour | B45: =Colour_Local('Clean Air'!F66,'Clean Air'!I66) ->  | D45: Brown - Green - Orange - Red - Yellow
A46: CA Cold Ambient Test - CO Colour | B46: =Colour_Local('Clean Air'!F67,'Clean Air'!I67) ->  | D46: Brown - Green - Orange - Red - Yellow
A47: CA Cold Ambient Test - PN Colour | B47: =Colour_Local('Clean Air'!F69,'Clean Air'!I69) ->  | D47: Brown - Green - Orange - Red - Yellow
A48: CA Highway Test - Score | B48: =ROUND('Clean Air'!F32,1) -> 
A49: CA Highway Test - NMHC Colour | B49: =Colour_Local('Clean Air'!F25,'Clean Air'!I25) ->  | C49: previously HC > to be renamed in dashboard
A50: CA Highway Test - NOx Colour | B50: =Colour_Local('Clean Air'!F26,'Clean Air'!I26) -> 
A51: CA Highway Test - NO2 Colour | B51: Not Used | D51: Brown - Green - Orange - Red - Yellow
A52: CA Highway Test - NH3 Colour | B52: =Colour_Local('Clean Air'!F28,'Clean Air'!I28) ->  | D52: Brown - Green - Orange - Red - Yellow
A53: CA Highway Test - CO Colour | B53: =Colour_Local('Clean Air'!F29,'Clean Air'!I29) -> 
A54: CA Highway Test - PN Colour | B54: =Colour_Local('Clean Air'!F31,'Clean Air'!I31) -> 
A55: CA Road Test - Overall Performance Colour | B55: =IF('OVERALL RATING (avg)'!E14="YES",(Colour_Local(SUM('Clean Air'!F42,'Clean Air'!F79,'Clean Air'!F88,'Clean Air'!F59,'Clean Air'!F98),SUM('Clean Air'!D34,'Clean Air'!D71,'Clean Air'!D80,'Clean Air'!D52,'Clean Air'!D89))),(Colour_Local(SUM('Clean Air'!F42,'Clean Air'!F59),SUM('Clean Air'!D34,'Clean Air'!D52)))) -> 
A56: CA On Road Drive - Score | B56: =ROUND('Clean Air'!F42,1) -> 
A57: CA On Road Drive - NMHC Colour | B57: Grey | C57: previously HC > to be renamed in dashboard
A58: CA On Road Drive - NOx Colour | B58: =Colour_Local('Clean Air'!F36,'Clean Air'!I36) -> 
A59: CA On Road Drive - NO2 Colour | B59: Grey | D59: Brown - Green - Orange - Red - Yellow
A60: CA On Road Drive - NH3 Colour | B60: Grey | D60: Brown - Green - Orange - Red - Yellow
A61: CA On Road Drive - CO Colour | B61: =Colour_Local('Clean Air'!F39,'Clean Air'!I39) -> 
A62: CA On Road Drive - PN Colour | B62: =Colour_Local('Clean Air'!F41,'Clean Air'!I41) -> 
A63: CA Robustness - Overall Performance Colour
A64: CA Light Load - Score | B64: =ROUND('Clean Air'!F79,1) -> 
A65: CA Light Load - NMHC Colour | B65: Grey
A66: CA Light Load - NOx Colour | B66: =Colour_Local('Clean Air'!F73,'Clean Air'!I73) -> 
A67: CA Light Load - NO2 Colour | B67: Grey
A68: CA Light Load - NH3 Colour | B68: Grey
A69: CA Light Load - CO Colour | B69: =Colour_Local('Clean Air'!F76,'Clean Air'!I76) -> 
A70: CA Light Load - PN Colour | B70: =Colour_Local('Clean Air'!F78,'Clean Air'!I78) -> 
A71: CA Heavy Load - Score | B71: =ROUND('Clean Air'!F88,1) -> 
A72: CA Heavy Load - NMHC Colour | B72: Grey
A73: CA Heavy Load - NOx Colour | B73: =Colour_Local('Clean Air'!F82,'Clean Air'!I82) -> 
A74: CA Heavy Load - NO2 Colour | B74: Grey
A75: CA Heavy Load - NH3 Colour | B75: Grey
A76: CA Heavy Load - CO Colour | B76: =Colour_Local('Clean Air'!F85,'Clean Air'!I85) -> 
A77: CA Heavy Load - PN Colour | B77: =Colour_Local('Clean Air'!F87,'Clean Air'!I87) -> 
A78: CA Short Trip - Score | B78: =ROUND('Clean Air'!F59,1) -> 
A79: CA Short Trip - NMHC Colour | B79: Grey
A80: CA Short Trip - NOx Colour | B80: =Colour_Local('Clean Air'!F53,'Clean Air'!I53) -> 
A81: CA Short Trip - NO2 Colour | B81: Grey
A82: CA Short Trip - NH3 Colour | B82: Grey
A83: CA Short Trip - CO Colour | B83: =Colour_Local('Clean Air'!F54,'Clean Air'!I54) -> 
A84: CA Short Trip - PN Colour | B84: =Colour_Local('Clean Air'!F55,'Clean Air'!I55) -> 
A85: CA Congestion - Score | B85: =ROUND('Clean Air'!F98,1) -> 
A86: CA Congestion - NMHC Colour | B86: Grey
A87: CA Congestion - NOx Colour | B87: =Colour_Local(SUM('Clean Air'!F91,'Clean Air'!F92),SUM('Clean Air'!I91,'Clean Air'!I92)) -> 
A88: CA Congestion - NO2 Colour | B88: Grey
A89: CA Congestion - NH3 Colour | B89: Grey
A90: CA Congestion - CO Colour | B90: Grey
A91: CA Congestion - PN Colour | B91: Grey
A92: Clean Air Comments | D92: use [CAi] to show the Clean Air index value, e.g. Model X scores [CAi] out of 10 points. use [AvS] to show the Average Score (don't include '%')
A93: Energy Efficiency Index | B93: ='OVERALL RATING (avg)'!K24 -> 
A94: Energy Efficiency Lab Tests - Overall performance | B94: =Colour_Local('OVERALL RATING (avg)'!K24,10) -> 
A95: EE Cold Test - Score | B95: =ROUND(Efficiency!F10,1) -> 
A96: EE Cold Test - Energy Eff Colour | B96: =Colour_Local(Efficiency!F10,Efficiency!I10) -> 
A97: EE Cold Test - Electric Efficiency Value | B97: =ROUND(Efficiency!P23,1) -> 0
A98: EE Warm Test - Score | B98: =ROUND(Efficiency!F12,1) -> 
A99: EE Warm Test - Energy Eff Colour | B99: =Colour_Local(Efficiency!F12,Efficiency!I12) -> 
A100: EE Warm Test - Electric Efficiency Value | B100: =ROUND(Efficiency!P25,1) -> 0
A101: EE Eco Test - Score | B101: - | C101: only 2019
A102: EE Eco Test - Energy Eff Colour | B102: - | C102: only 2019
A103: EE Eco Test - Electric Efficiency Value | B103: - | C103: only 2019
A104: EE Sport Test - Score | B104: - | C104: only 2019
A105: EE Sport Test - Energy Eff Colour | B105: - | C105: only 2019
A106: EE Sport Test - Electric Efficiency Value | B106: - | C106: only 2019
A107: EE Cold Ambient Test - Score | B107: =ROUND(Efficiency!F11,1) ->  | D107: Number - 1 decimal place
A108: EE Cold Ambient Test - Energy Eff Colour | B108: =Colour_Local(Efficiency!F11,Efficiency!I11) ->  | D108: Brown - Green - Orange - Red - Yellow
A109: EE Cold Ambient Test - Electric Efficiency Value | B109: =ROUND(Efficiency!P24,1) -> 0 | D109: Number
A110: EE Highway Test - Score | B110: =ROUND(Efficiency!F15,1) -> 
A111: EE Highway Test - Energy Eff Colour | B111: =Colour_Local(Efficiency!F15,Efficiency!I15) -> 
A112: EE Highway Test - Electric Efficiency Value | B112: =ROUND(Efficiency!P28,1) -> 0
A113: Average Consumption (1st fuel source) | B113: =ROUND(IF(OR(Petrol,Diesel,E85),Efficiency!M32,IF(Electric,Efficiency!P32,IF(OR(CNG_Dual,CNG_Mono,Hydrogen),Efficiency!S32,"???"))),2) -> 0 | C113: Update 2202 | D113: Number - 2 decimal places (cfr Joanneum calculation)
A114: Best-Case Consumption (1st fuel source) | B114: =ROUND(IF(OR(Petrol,Diesel,E85),Efficiency!M36,IF(Electric,Efficiency!P36,IF(OR(CNG_Dual,CNG_Mono,Hydrogen),Efficiency!S36,"???"))),2) ->  | C114: New 2301 | D114: Number - 2 decimal places (cfr Joanneum calculation)
A115: Worst-Case Consumption (1st fuel source) | B115: =ROUND(IF(OR(Petrol,Diesel,E85),Efficiency!M37,IF(Electric,Efficiency!P37,IF(OR(CNG_Dual,CNG_Mono,Hydrogen),Efficiency!S37,"???"))),2) -> 0 | C115: Update 2202 | D115: Number - 2 decimal places (cfr Joanneum calculation)
A116: Average Consumption (2nd fuel source) | B116: =ROUND(IF(CNG_Dual,Efficiency!M32,"0"),2) -> 0 | C116: Update 2202 | D116: Number - 2 decimal places (cfr Joanneum calculation)
A117: Best-Case Consumption (2nd fuel source) | B117: =ROUND(IF(CNG_Dual,Efficiency!M36,"0"),2) -> 0 | C117: New 2301 | D117: Number - 2 decimal places (cfr Joanneum calculation)
A118: Worst-Case Consumption (2nd fuel source) | B118: =ROUND(IF(CNG_Dual,Efficiency!M37,"0"),2) -> 0 | C118: Update 2202 | D118: Number - 2 decimal places (cfr Joanneum calculation)
A119: Driving Range - Average (1st fuel source) | B119: =ROUND(IF(OR(Petrol,Diesel,E85),Efficiency!M52,IF(Electric,Efficiency!P52,IF(OR(CNG_Dual,CNG_Mono,Hydrogen),Efficiency!S52,"???"))),0) -> 0 | D119: Number - no decimal places
A120: Driving Range - Best-Case (1st fuel source) | B120: =ROUND(IF(OR(Petrol,Diesel,E85),Efficiency!M56,IF(Electric,Efficiency!P56,IF(OR(CNG_Dual,CNG_Mono,Hydrogen),Efficiency!S56,"???"))),0) -> 0 | C120: New 2301 | D120: Number - no decimal places
A121: Driving Range - Worst-Case (1st fuel source) | B121: =ROUND(IF(OR(Petrol,Diesel,E85),Efficiency!M57,IF(Electric,Efficiency!P57,IF(OR(CNG_Dual,CNG_Mono,Hydrogen),Efficiency!S57,"???"))),0) ->  | D121: Number - no decimal places
A122: Driving Range - Average (2nd fuel source) | B122: =ROUND(IF(CNG_Dual,Efficiency!M52,"0"),0) -> 0 | D122: Number - no decimal places
A123: Driving Range - Best-Case (2nd fuel source) | B123: =ROUND(IF(CNG_Dual,Efficiency!M56,"0"),0) -> 0 | C123: New 2301 | D123: Number - no decimal places
A124: Driving Range - Worst-Case (2nd fuel source) | B124: =ROUND(IF(CNG_Dual,Efficiency!M57,"0"),0) -> 0 | D124: Number - no decimal places
A125: Energy Efficiency Comment | D125: use [EEi] to show the Energy Efficiency index value, e.g. Model X scores [EEi] out of 10 points. use [AvS] to show the Average Score (don't include '%')
A126: Greenhouse Gas Index | B126: ='OVERALL RATING (avg)'!K25 ->  | D126: Number - 1 decimal place
A127: Greenhouse Gas - Overall Performance | B127: =Colour_Local('OVERALL RATING (avg)'!K25,10) ->  | D127: Brown - Green - Orange - Red - Yellow
A128: GG Cold Test - Score | B128: =ROUND(Greenhouse!F14,1) ->  | D128: Number - 1 decimal place
A129: GG Cold Test - CO2 Colour | B129: =Colour_Local(Greenhouse!F9,Greenhouse!I9) ->  | C129: added GG > to be renamed in the dashboard
A130: GG Cold Test - N2O Colour | B130: =Colour_Local(Greenhouse!F7,Greenhouse!I7) ->  | D130: Brown - Green - Orange - Red - Yellow
A131: GG Cold Test - CH4 Colour | B131: =Colour_Local(Greenhouse!F8,Greenhouse!I8) ->  | D131: Brown - Green - Orange - Red - Yellow
A132: GG Warm Test - Score | B132: =ROUND(Greenhouse!F32,1) ->  | D132: Number - 1 decimal place
A133: GG Warm Test - CO2 Colour | B133: =Colour_Local(Greenhouse!F27,Greenhouse!I27) ->  | C133: added GG > to be renamed in the dashboard
A134: GG Warm Test - N2O Colour | B134: =Colour_Local(Greenhouse!F25,Greenhouse!I25) ->  | D134: Brown - Green - Orange - Red - Yellow
A135: GG Warm Test - CH4 Colour | B135: =Colour_Local(Greenhouse!F26,Greenhouse!I26) ->  | D135: Brown - Green - Orange - Red - Yellow
A136: Eco Test - CO2 Colour | B136: -
A137: Sport Test - CO2 Colour | B137: -
A138: GG Cold Ambient Test - Score | B138: =ROUND(Greenhouse!F23,1) ->  | D138: Number - 1 decimal place
A139: GG Cold Ambient Test - CO2 Colour | B139: =Colour_Local(Greenhouse!F18,Greenhouse!I18) ->  | D139: Brown - Green - Orange - Red - Yellow
A140: GG Cold Ambient Test - N2O Colour | B140: =Colour_Local(Greenhouse!F16,Greenhouse!I16) ->  | D140: Brown - Green - Orange - Red - Yellow
A141: GG Cold Ambient Test - CH4 Colour | B141: =Colour_Local(Greenhouse!F17,Greenhouse!I17) ->  | D141: Brown - Green - Orange - Red - Yellow
A142: GG Highway Test - Score | B142: =ROUND(Greenhouse!F62,1) ->  | D142: Number - 1 decimal place
A143: GG Highway Test - CO2 Colour | B143: =Colour_Local(Greenhouse!F57,Greenhouse!I57) ->  | C143: added GG > to be renamed in the dashboard
A144: GG Highway Test - N2O Colour | B144: =Colour_Local(Greenhouse!F55,Greenhouse!I55) ->  | D144: Brown - Green - Orange - Red - Yellow
A145: GG Highway Test - CH4 Colour | B145: =Colour_Local(Greenhouse!F56,Greenhouse!I56) ->  | D145: Brown - Green - Orange - Red - Yellow
A146: CO2 Tailpipe - Average | B146: =ROUND(AVERAGE(Greenhouse!E10,Greenhouse!E28,Greenhouse!E58),2) -> 0 | C146: New 2301 | D146: Number - 2 decimal places (cfr Joanneum calculation)
A147: CO2 Tailpipe - Best | B147: =ROUND(IF('OVERALL RATING (avg)'!E14="NO",MIN(Greenhouse!E10,Greenhouse!E28,Greenhouse!E38,Greenhouse!E58),IF('OVERALL RATING (avg)'!E14="YES",MIN(Greenhouse!E10,Greenhouse!E19,Greenhouse!E28,Greenhouse!E38,Greenhouse!E58,Greenhouse!E67,Greenhouse!E76),"")),2) ->  | C147: New 2301 | D147: Number - 2 decimal places (cfr Joanneum calculation)
A148: CO2 Tailpipe - Worst | B148: =ROUND(IF('OVERALL RATING (avg)'!E14="NO",MAX(Greenhouse!E10,Greenhouse!E28,Greenhouse!E38,Greenhouse!E58),IF('OVERALL RATING (avg)'!E14="YES",MAX(Greenhouse!E10,Greenhouse!E19,Greenhouse!E28,Greenhouse!E38,Greenhouse!E58,Greenhouse!E67,Greenhouse!E76),"")),2) ->  | C148: New 2301 | D148: Number - 2 decimal places (cfr Joanneum calculation)
A149: N2O | B149: =ROUND(Greenhouse!E7,1) -> 0 | C149: New 2301 | D149: Number - 1 decimal place | E149: for LCA, from WLTC+ cold, mg/km
A150: CH4 | B150: =ROUND(Greenhouse!E8,1) -> 0 | C150: New 2301 | D150: Number - 1 decimal place | E150: for LCA, from WLTC+ cold, mg/km
A151: Greenhouse Gas Comment | D151: use [GGi] to show the Greenhouse Gas index value, e.g. Model X scores [GGi] out of 10 points. use [AvS] to show the Average Score (don't include '%')
A152: Verdict | D152: use [stars] to show the stars value of the spreadsheet use [AvS] to show the Average Score (don't include '%')
A153: VIN of Tested Car | B153: =SPECS!B26 -> 0
A154: Mass | B154: =SPECS!B33 -> 0
A155: Engine Size | B155: =SPECS!B29 -> 0
A156: Engine Power | B156: =SPECS!B30 -> 0
A157: Torque | B157: =SPECS!B31 -> 0
A158: Tyres | B158: =SPECS!B32 -> 0
A159: Published CO2 | B159: =IF(Electric,"",SPECS!B13) -> 0
A160: Rating Validity
A161: Consumption type (l - kg - kW) | B161: =IF(OR(Petrol,Diesel,E85),"l",IF(OR(Hydrogen,CNG_Mono,CNG_Dual),"kg",IF(Electric,"kW","???"))) -> l
A162: Consumption per | B162: 100km
A163: Primary fuel source | B163: =IF(Petrol,"Petrol",IF(Diesel,"Diesel",IF(E85,"E85 Ethanol",IF(Hydrogen,"Hydrogen",IF(CNG_Mono,"CNG",IF(Electric,"Electric",IF(CNG_Dual,"CNG","???"))))))) -> Petrol
A164: Secondary fuel source | B164: =IF(CNG_Dual,"Petrol","") -> 
A165: Published Driving Range | B165: =SPECS!B17 -> 0 | C165: = declared driving range | D165: Number - no decimal place
A166: Declared Driving Range City | B166: =SPECS!B18 -> 0 | C166: New 2203 | D166: Number - no decimal place
A167: Declared Consumption (1st Energy Source) | B167: =IF(SPECS!B14>0,ROUND(SPECS!B14,1),ROUND(SPECS!B16,1)) -> 0 | C167: New 2203 | D167: Number - 1 decimal place
A168: Declared Consumption (2nd Energy Source) | B168: =SPECS!B15 -> 0 | C168: New 2203 | D168: Number - 1 decimal place
A169: Primary fuel consumption units | B169: =IF(OR(Petrol,Diesel,E85),"l/100km",IF(OR(CNG_Dual,CNG_Mono,Hydrogen),"kg/100km",IF(Electric,"kWh/100km"))) -> l/100km
A170: Secondary fuel consumption units | B170: =IF(CNG_Dual,"l/100km","") -> 
A171: Single/Dual Fuel source | B171: =IF(OR(Petrol,Diesel,E85,CNG_Mono,Hydrogen,Electric),"Single",IF(OR(Petrol_PHEV,Diesel_PHEV,CNG_Dual),"Dual","?????")) -> Single
A172: Battery capacity | B172: =ROUND(SPECS!B11,IF(SPECS!B11<10,2,1)) -> 0 | C172: Declared Battery Capacity (usable) | D172: Number - 1 decimal place > 10 - else 2 decimals
A173: Declared Battery Capacity (installed) | B173: =ROUND(SPECS!B12,IF(SPECS!B12<10,2,1)) -> 0 | C173: New 2301 | D173: Number - 1 decimal place > 10 - else 2 decimals
A174: Heating concept | B174: =SPECS!B22 -> 0 | C174: New 2302 | D174: text
A175: Drivetrain | B175: =SPECS!B5 -> 0
A176: Short_Variant
A177: Chassis | B177: =VLOOKUP(SPECS!B24,SPECS!H25:I31,2,FALSE) -> Convertible | C177: New 2203 | D177: Saloon - Hatchback - Station wagon - Coupe - Convertible - Multi-purpose vehicle - Truck station wagon
A178: Test stage | B178: ="Stage "&IF('OVERALL RATING (avg)'!E14="yes",2,1) -> 
A179: Internal Combustion Engine | B179: =IF(Petrol,"Petrol",IF(Diesel,"Diesel",IF(E85,"E85",IF(CNG_Mono,"CNG",IF(CNG_Dual,"CNG",""))))) -> Petrol | C179: New 2206, if tested on E85, it will show E85 as engine on purpose
A180: Electric Engine | B180: =IF(Hydrogen,"Hydrogen",IF(Electric,"BEV",IF(SPECS!M9=TRUE,"Hybrid",""))) ->  | C180: New 2206
A181: Weighted Overall Index | B181: ='OVERALL RATING (avg)'!C26 ->  | C181: New 2209 | D181: Number - 1 decimal place
A182: Average Score | B182: =B181/10 ->  | C182: New 2305 | D182: %
A183: LCA Award | B183: No | C183: New 2305 | D183: Yes/No

Sheet Track Changes (hidden)
A1: Version 2.0.8.2 received the following changes to adopt E85 fuel: | B1: Damyanov | D1: 29.09.2022
A3: LIMITS Greenhouse
A4: · B33 E85 fuel Upstream CO2 reduction factor due to neutral bio-fuel share combustion carbon balance = 0,214
A5: · Row 26, added “Ethanol E85”, 1,753
A7: LIMITS Efficiency
A8: · B19 added “E10”
A9: · B20 added “B7”
A10: · Row added after table at line 24
A11: · On line 24 added “Ethanol E85, Factor 6,41, Override 6,41
A13: SPECS
A14: · Ethanol E85 option inserted
A15: · Formula in B6 and B7 expanded with E85 option
A17: Efficiency
A18: · Formulas in E10:E15 expanded with addition of E85 option
A19: · Formulas in M23:E31 expanded with addition of E85 option
A20: · Formulas in W23:W31 expanded with addition of E85 option
A21: · Formulas in M43:M51 expanded with addition of E85 option
A23: Greenhouse
A24: · Formulas in Column E and H expanded with addition of E85 option
A25: · T7 formula expanded with E85 option
A27: Website Summary
A28: · D89, D118, D139, D140 now include instruction about using automatic indexing
A29: · Row 167 now defines the Weighted Overall Index
A31: Version saved as 2.0.8.2_E85
A33: Version 2.0.8.2_E85 received the following chnages to ease data transfer to assessment, LCA Static and LCA Tool | B33: Damyanov | D33: 26.01.2023
A35: Website Summary
A36: Row 5: Start of Production
A37: Row 6: End of Production
A38: Row 9: Number of Doors
A39: Row 114: Best-Case Consumption (1st fuel source)
A40: Row 117: Best-Case Consumption (1st fuel source)
A41: Cells D119-D124: format explanation
A42: Row 120: Driving Range - Best-Case (1st fuel source)
A43: Row 123: Driving Range - Best - Case (2nd fuel source)
A44: Row 144: CO2 Tailpipe - Average
A45: Row 145: CO2 Tailpipe - Best
A46: Row 146: CO2 Tailpipe - Worst
A47: Row 147: N2O
A48: Row 148: CH4
A49: Cell D165: format explanation
A50: Cell C170, explanation: Declared Battery Capacity (usable)
A51: Row 171: Declared Battery Capacity (installed)
A52: A15, A93, A126: formated in bold
A54: SPECS
A55: Cells O1, O2: Rating sheet Version displayed
A56: Cell J6: Info added "Respect Green NCAP's definition of "Hybrid"."
A57: Cell A5, label changed from "Drivetrain (FWD/AWD/RWD/4WD)" to Drivetrain"
A58: Cell B5: Dropdown list inserted for Drivetrain
A59: Chnaged A11 from "Declared Battery Capacity [kWh]" to "Declared Battery Capacity (usable) [kWh]"
A60: Added Row 12: Declared Battery Capacity (installed) [kWh]
A61: Cell B22: Dropdown list inserted for Gearbox type
A62: Cell C23: info changed
A63: Added Row 33 "Start of Production"
A64: Added Row 34 "End of Production" with conditional formatting
A65: Tabs SPECS and RESULTS moved to 2nd and 3rd position
A66: RESULTS
A67: Table Structure Protected by the same password as for the other tabs
A68: TABS LIMITS Clean Air, LIMITS Efficiency, LIMITS Greenhouse
A69: Font changed to Calibri 11 for all.
A70: Version saved as 2.0.8.3
A72: Version 2.0.8.3 received the following chnages as it was spotted that the PEMS tests are not included in the selection range for best/worst CO2 consumption for LCA. They should be, because there are included in the selection for best/worst fuel/energy consumption. | B72: Damyanov | D72: 02.02.2023
A74: Greenhouse
A75: Hidden PEMS blocks opened:
A76: PEMS+ cold engine 1
A77: PEMS+ Eco / light
A78: PEMS+ Heavy load
A79: Cells C33 und B51 "Regulatory performance PEMS+ " deleted
A80: All PEMS test blocks put in gray font colour
A81: In all PEMS blocks, the formula for the tailpipe CO2 emissions received a changed reference to column "E" in sheet "Results", instead to column "F"
A82: In all PEMS blocks, the formula for the tailpipe CO2 emissions received a additional variable "E_85"
A83: WEBSITE SUMMARY
A84: B147 Addition of all PEMS test as range for the selection in the fromula
A85: B148 Addition of all PEMS test as range for the selection in the fromula
A87: OVERALL RATING (avg) | B87: Verheyen | D87: 03.02.2023
A88: Stars label changed to year 2023
A89: WEBSITE SUMMARY
A90: Internal Combustion Engine (line 178) should say =IF(Petrol,"Petrol",IF(Diesel,"Diesel",IF(E_85,"E85",IF(CNG_Mono,"CNG",IF(CNG_Dual,"CNG",""))))) to have E85 reflect in the datasheet. It is understood that E85 is not an eingine type, stillwe accept that.
A91: SPECS | B91: Damyanov | D91: 03.02.2023
A92: Cell O2, Year chnaged to 2023
A93: Cells O3, O4: "Protocols 2022" added
A95: Version saved as GNT_Rating_Sheet_Master_2023v2.0.8.4
A98: Version GNT_Rating_Sheet_Master_2023v2.0.8.4 received the following update: | B98: Damyanov | D98: 22.02.2023
A99: SPECS
A100: New entry in row 22: Heating concept with a drop down selection list in P18:P24
A101: O2: version changed to 2.0.8.5
A102: A13:A15 deleted ", combined PHEV" from label
A103: WEBSITE SUMMARY
A104: Addition of new field "Heating Concept" in row 174 and reference to the source cell in SPECS
A106: Version saved as GNT_Rating_Sheet_Master_2023v2.0.8.5
